{"text_format":"1","workbook":"xlsx","n_sheets":3,"sheets":["Лист1","Table","Лист3"],"not_rendered":{"charts":0,"images":1,"macros":1,"external_links":1,"defined_names":9,"comments":0,"pivot_tables":0},"unopened":[],"bounds":{"document_bytes":16777216,"sheet_cells":100000,"rows_first":2000,"rows_last":500,"rows_between":2000,"halvings":0,"cell_chars":16384,"cell_head_chars":4096},"cells_cut":0,"cells_raw":0,"read":"whole","date_system":"1900"}

{"sheet":"Лист1","index":0,"n_rows":48,"n_cols":10,"rows_kept":48,"cut":false,"hidden":false,"merged":[[13,7,13,10],[20,7,20,10],[21,1,21,2],[21,7,21,10],[26,3,26,5],[26,9,26,10],[39,1,39,2],[39,7,39,10],[34,1,34,2],[34,7,34,10],[8,7,8,10],[9,1,9,2],[9,7,9,10],[14,1,14,2],[14,7,14,10],[10,1,10,2],[10,7,10,10],[11,1,11,2],[11,7,11,10],[12,1,12,2],[12,7,12,10],[13,1,13,2],[30,7,30,10],[31,7,31,10],[32,7,32,10],[38,7,38,10],[38,1,38,2],[35,1,35,2],[35,7,35,10],[36,1,36,2],[36,7,36,10],[33,1,33,2],[46,1,46,2],[46,7,46,10],[47,1,47,2],[47,7,47,10],[41,1,41,2],[41,7,41,10],[42,1,42,2],[42,7,42,10],[43,1,43,2],[43,7,43,10],[44,1,44,2],[44,7,44,10],[45,1,45,2],[45,7,45,10],[40,1,40,2],[40,7,40,10],[37,1,37,2],[37,7,37,10],[0,0,0,10],[1,3,1,5],[1,9,1,10],[2,0,2,1],[3,0,3,1],[3,2,3,3],[2,2,2,10],[5,1,5,2],[5,7,5,10],[6,7,6,10],[7,7,7,10],[33,7,33,10],[15,7,15,10],[16,7,16,10],[27,0,27,1],[27,2,27,10],[25,0,25,10],[20,1,20,2],[17,7,17,10],[18,7,18,10],[19,7,19,10],[6,1,6,2],[7,1,7,2],[31,1,31,2],[32,1,32,2],[16,1,16,2],[28,0,28,1],[28,2,28,3],[15,1,15,2],[30,1,30,2],[17,1,17,2],[18,1,18,2],[19,1,19,2],[8,1,8,2]]}
["ВНИМАТЕЛЬНО ПРОВЕРЬТЕ ШИРИНУ, ВЫСОТУ, УПРАВЛЕНИЕ, ТИП МАТЕРИАЛА И КОЛИЧЕСТВО"]
[null,null,null,"Спецификация №"]
["ФИО/телефон:"]
["Дата изготовления:"]
[]
["№","Наименование",null,"ширина","высота","упр-ние","количество","тип материала"]
[1,"Вертикальные жалюзи",null,1,1,"к.р.",1,""]
[null,"Вертикальные жалюзи",null,2,3,"ц.р.",1]
[]
[]
[]
[]
[]
[]
[]
[]
[]
[]
[]
[]
[]
[]
[]
[null,"Итого ",{"$f":"PRODUCT(D7:E7,G7)","v":1}]
[]
["ВНИМАТЕЛЬНО ПРОВЕРЬТЕ ШИРИНУ, ВЫСОТУ, УПРАВЛЕНИЕ, ТИП МАТЕРИАЛА И КОЛИЧЕСТВО"]
[null,null,null,"Спецификация №",null,null,{"$f":"(G2)","v":0},null,null,{"$f":"(J2)","v":"00:00:00"}]
["ФИО/телефон:",null,{"$f":"(C3)","v":0}]
["Дата изготовления:",null,{"$f":"(C4)","v":"00:00:00"}]
[]
["№","Наименование",null,"ширина","высота","упр-ние","количество","тип материала"]
[{"$f":"(A7)","v":1},{"$f":"(B7)","v":"Вертикальные жалюзи"},null,{"$f":"(D7)","v":1},{"$f":"(E7)","v":1},"к.р.",1,""]
[{"$f":"(A8)","v":0},{"$f":"(B8)","v":"Вертикальные жалюзи"},null,2,3,"ц.р.",1,0]
[0,0,null,{"$f":"(D9)","v":0},{"$f":"(E9)","v":0},{"$f":"(F9)","v":0},{"$f":"(G9)","v":0},{"$f":"(H9)","v":0}]
[{"$f":"(A10)","v":0},0,null,0,0,0,0,0]
[{"$f":"(A11)","v":0},0,null,0,0,0,0,{"$f":"(H11)","v":0}]
[{"$f":"(A12)","v":0},0,null,0,0,0,0,0]
[{"$f":"(A13)","v":0},0,null,0,0,0,0,{"$f":"(H13)","v":0}]
[{"$f":"(A14)","v":0},0,null,0,0,0,0,{"$f":"(H14)","v":0}]
[{"$f":"(A15)","v":0},0,null,0,0,0,0,{"$f":"(H15)","v":0}]
[{"$f":"(A16)","v":0},0,null,0,0,0,0,0]
[0,0,null,0,0,0,0,0]
[0,0,null,0,0,0,0,0]
[0,0,null,0,0,0,0,0]
[0,0,null,0,0,0,0,0]
[0,0,null,0,0,0,0,0]
[{"$f":"(A21)","v":0},{"$f":"(B22)","v":0},null,0,0,0,0,{"$f":"(H21)","v":0}]
[0,0,null,0,0,0,0,0]

{"sheet":"Table","index":1,"n_rows":164,"n_cols":8,"rows_kept":164,"cut":false,"hidden":false,"merged":[]}
["Столбец1","Столбец2","Столбец3","Цена ","Наименование","Статус","Индекс","Фильтр"]
[null,null,null,150,"Антарес фиолетовый",{"$f":"NOT(ISERROR(SEARCH(Лист1!$H$7,Таблица2[[#This Row],[Наименование]])))","v":true},{"$f":"IF(Таблица2[[#This Row],[Статус]],COUNTIF($F$2:Таблица2[[#This Row],[Статус]],TRUE),\"\")","v":1},{"$f":"IFERROR(INDEX(Таблица2[Наименование],MATCH(ROWS($G$2:Таблица2[[#This Row],[Индекс]]),Таблица2[Индекс],0)),\"\")","v":"Антарес фиолетовый"}]
[null,null,null,100,"Аризона голубой",{"$f":"NOT(ISERROR(SEARCH(Лист1!$H$7,Таблица2[[#This Row],[Наименование]])))","v":true},{"$f":"IF(Таблица2[[#This Row],[Статус]],COUNTIF($F$2:Таблица2[[#This Row],[Статус]],TRUE),\"\")","v":2},{"$f":"IFERROR(INDEX(Таблица2[Наименование],MATCH(ROWS($G$2:Таблица2[[#This Row],[Индекс]]),Таблица2[Индекс],0)),\"\")","v":"Аризона голубой"}]
[null,null,null,100,"Аризона светло голубой",{"$f":"NOT(ISERROR(SEARCH(Лист1!$H$7,Таблица2[[#This Row],[Наименование]])))","v":true},{"$f":"IF(Таблица2[[#This Row],[Статус]],COUNTIF($F$2:Таблица2[[#This Row],[Статус]],TRUE),\"\")","v":3},{"$f":"IFERROR(INDEX(Таблица2[Наименование],MATCH(ROWS($G$2:Таблица2[[#This Row],[Индекс]]),Таблица2[Индекс],0)),\"\")","v":"Аризона светло голубой"}]
[null,null,null,100,"Аризона розовый",{"$f":"NOT(ISERROR(SEARCH(Лист1!$H$7,Таблица2[[#This Row],[Наименование]])))","v":true},{"$f":"IF(Таблица2[[#This Row],[Статус]],COUNTIF($F$2:Таблица2[[#This Row],[Статус]],TRUE),\"\")","v":4},{"$f":"IFERROR(INDEX(Таблица2[Наименование],MATCH(ROWS($G$2:Таблица2[[#This Row],[Индекс]]),Таблица2[Индекс],0)),\"\")","v":"Аризона розовый"}]
[null,null,null,200,"Бриз белый",{"$f":"NOT(ISERROR(SEARCH(Лист1!$H$7,Таблица2[[#This Row],[Наименование]])))","v":true},{"$f":"IF(Таблица2[[#This Row],[Статус]],COUNTIF($F$2:Таблица2[[#This Row],[Статус]],TRUE),\"\")","v":5},{"$f":"IFERROR(INDEX(Таблица2[Наименование],MATCH(ROWS($G$2:Таблица2[[#This Row],[Индекс]]),Таблица2[Индекс],0)),\"\")","v":"Бриз белый"}]
[null,null,null,200,"Бриз темно бежевый",{"$f":"NOT(ISERROR(SEARCH(Лист1!$H$7,Таблица2[[#This Row],[Наименование]])))","v":true},{"$f":"IF(Таблица2[[#This Row],[Статус]],COUNTIF($F$2:Таблица2[[#This Row],[Статус]],TRUE),\"\")","v":6},{"$f":"IFERROR(INDEX(Таблица2[Наименование],MATCH(ROWS($G$2:Таблица2[[#This Row],[Индекс]]),Таблица2[Индекс],0)),\"\")","v":"Бриз темно бежевый"}]
[null,null,null,200,"Бриз персиковый",{"$f":"NOT(ISERROR(SEARCH(Лист1!$H$7,Таблица2[[#This Row],[Наименование]])))","v":true},{"$f":"IF(Таблица2[[#This Row],[Статус]],COUNTIF($F$2:Таблица2[[#This Row],[Статус]],TRUE),\"\")","v":7},{"$f":"IFERROR(INDEX(Таблица2[Наименование],MATCH(ROWS($G$2:Таблица2[[#This Row],[Индекс]]),Таблица2[Индекс],0)),\"\")","v":"Бриз персиковый"}]
[null,null,null,200,"Бриз венге",{"$f":"NOT(ISERROR(SEARCH(Лист1!$H$7,Таблица2[[#This Row],[Наименование]])))","v":true},{"$f":"IF(Таблица2[[#This Row],[Статус]],COUNTIF($F$2:Таблица2[[#This Row],[Статус]],TRUE),\"\")","v":8},{"$f":"IFERROR(INDEX(Таблица2[Наименование],MATCH(ROWS($G$2:Таблица2[[#This Row],[Индекс]]),Таблица2[Индекс],0)),\"\")","v":"Бриз венге"}]
[null,null,null,100,"Гранд 41260 (светло зеленый)",{"$f":"NOT(ISERROR(SEARCH(Лист1!$H$7,Таблица2[[#This Row],[Наименование]])))","v":true},{"$f":"IF(Таблица2[[#This Row],[Статус]],COUNTIF($F$2:Таблица2[[#This Row],[Статус]],TRUE),\"\")","v":9},{"$f":"IFERROR(INDEX(Таблица2[Наименование],MATCH(ROWS($G$2:Таблица2[[#This Row],[Индекс]]),Таблица2[Индекс],0)),\"\")","v":"Гранд 41260 (светло зеленый)"}]
[null,null,null,100,"Дождь белый",{"$f":"NOT(ISERROR(SEARCH(Лист1!$H$7,Таблица2[[#This Row],[Наименование]])))","v":true},{"$f":"IF(Таблица2[[#This Row],[Статус]],COUNTIF($F$2:Таблица2[[#This Row],[Статус]],TRUE),\"\")","v":10},{"$f":"IFERROR(INDEX(Таблица2[Наименование],MATCH(ROWS($G$2:Таблица2[[#This Row],[Индекс]]),Таблица2[Индекс],0)),\"\")","v":"Дождь белый"}]
[null,null,null,100,"Дождь бежевый",{"$f":"NOT(ISERROR(SEARCH(Лист1!$H$7,Таблица2[[#This Row],[Наименование]])))","v":true},{"$f":"IF(Таблица2[[#This Row],[Статус]],COUNTIF($F$2:Таблица2[[#This Row],[Статус]],TRUE),\"\")","v":11},{"$f":"IFERROR(INDEX(Таблица2[Наименование],MATCH(ROWS($G$2:Таблица2[[#This Row],[Индекс]]),Таблица2[Индекс],0)),\"\")","v":"Дождь бежевый"}]
[null,null,null,100,"Дождь темно бежевый",{"$f":"NOT(ISERROR(SEARCH(Лист1!$H$7,Таблица2[[#This Row],[Наименование]])))","v":true},{"$f":"IF(Таблица2[[#This Row],[Статус]],COUNTIF($F$2:Таблица2[[#This Row],[Статус]],TRUE),\"\")","v":12},{"$f":"IFERROR(INDEX(Таблица2[Наименование],MATCH(ROWS($G$2:Таблица2[[#This Row],[Индекс]]),Таблица2[Индекс],0)),\"\")","v":"Дождь темно бежевый"}]
[null,null,null,100,"Дождь салатовый",{"$f":"NOT(ISERROR(SEARCH(Лист1!$H$7,Таблица2[[#This Row],[Наименование]])))","v":true},{"$f":"IF(Таблица2[[#This Row],[Статус]],COUNTIF($F$2:Таблица2[[#This Row],[Статус]],TRUE),\"\")","v":13},{"$f":"IFERROR(INDEX(Таблица2[Наименование],MATCH(ROWS($G$2:Таблица2[[#This Row],[Индекс]]),Таблица2[Индекс],0)),\"\")","v":"Дождь салатовый"}]
[null,null,null,100,"Дождь голубой",{"$f":"NOT(ISERROR(SEARCH(Лист1!$H$7,Таблица2[[#This Row],[Наименование]])))","v":true},{"$f":"IF(Таблица2[[#This Row],[Статус]],COUNTIF($F$2:Таблица2[[#This Row],[Статус]],TRUE),\"\")","v":14},{"$f":"IFERROR(INDEX(Таблица2[Наименование],MATCH(ROWS($G$2:Таблица2[[#This Row],[Индекс]]),Таблица2[Индекс],0)),\"\")","v":"Дождь голубой"}]
[null,null,null,100,"Дождь персиковый",{"$f":"NOT(ISERROR(SEARCH(Лист1!$H$7,Таблица2[[#This Row],[Наименование]])))","v":true},{"$f":"IF(Таблица2[[#This Row],[Статус]],COUNTIF($F$2:Таблица2[[#This Row],[Статус]],TRUE),\"\")","v":15},{"$f":"IFERROR(INDEX(Таблица2[Наименование],MATCH(ROWS($G$2:Таблица2[[#This Row],[Индекс]]),Таблица2[Индекс],0)),\"\")","v":"Дождь персиковый"}]
[null,null,null,100,"Дождь лимонный",{"$f":"NOT(ISERROR(SEARCH(Лист1!$H$7,Таблица2[[#This Row],[Наименование]])))","v":true},{"$f":"IF(Таблица2[[#This Row],[Статус]],COUNTIF($F$2:Таблица2[[#This Row],[Статус]],TRUE),\"\")","v":16},{"$f":"IFERROR(INDEX(Таблица2[Наименование],MATCH(ROWS($G$2:Таблица2[[#This Row],[Индекс]]),Таблица2[Индекс],0)),\"\")","v":"Дождь лимонный"}]
[null,null,null,100,"Дождь светло коричневый new",{"$f":"NOT(ISERROR(SEARCH(Лист1!$H$7,Таблица2[[#This Row],[Наименование]])))","v":true},{"$f":"IF(Таблица2[[#This Row],[Статус]],COUNTIF($F$2:Таблица2[[#This Row],[Статус]],TRUE),\"\")","v":17},{"$f":"IFERROR(INDEX(Таблица2[Наименование],MATCH(ROWS($G$2:Таблица2[[#This Row],[Индекс]]),Таблица2[Индекс],0)),\"\")","v":"Дождь светло коричневый new"}]
[null,null,null,100,"Дождь 9051 (оранжевый)",{"$f":"NOT(ISERROR(SEARCH(Лист1!$H$7,Таблица2[[#This Row],[Наименование]])))","v":true},{"$f":"IF(Таблица2[[#This Row],[Статус]],COUNTIF($F$2:Таблица2[[#This Row],[Статус]],TRUE),\"\")","v":18},{"$f":"IFERROR(INDEX(Таблица2[Наименование],MATCH(ROWS($G$2:Таблица2[[#This Row],[Индекс]]),Таблица2[Индекс],0)),\"\")","v":"Дождь 9051 (оранжевый)"}]
[null,null,null,100,"Дождь Black-out белый",{"$f":"NOT(ISERROR(SEARCH(Лист1!$H$7,Таблица2[[#This Row],[Наименование]])))","v":true},{"$f":"IF(Таблица2[[#This Row],[Статус]],COUNTIF($F$2:Таблица2[[#This Row],[Статус]],TRUE),\"\")","v":19},{"$f":"IFERROR(INDEX(Таблица2[Наименование],MATCH(ROWS($G$2:Таблица2[[#This Row],[Индекс]]),Таблица2[Индекс],0)),\"\")","v":"Дождь Black-out белый"}]
[null,null,null,100,"Дождь Black-out персиковый new",{"$f":"NOT(ISERROR(SEARCH(Лист1!$H$7,Таблица2[[#This Row],[Наименование]])))","v":true},{"$f":"IF(Таблица2[[#This Row],[Статус]],COUNTIF($F$2:Таблица2[[#This Row],[Статус]],TRUE),\"\")","v":20},{"$f":"IFERROR(INDEX(Таблица2[Наименование],MATCH(ROWS($G$2:Таблица2[[#This Row],[Индекс]]),Таблица2[Индекс],0)),\"\")","v":"Дождь Black-out персиковый new"}]
[null,null,null,100,"Джангл белый",{"$f":"NOT(ISERROR(SEARCH(Лист1!$H$7,Таблица2[[#This Row],[Наименование]])))","v":true},{"$f":"IF(Таблица2[[#This Row],[Статус]],COUNTIF($F$2:Таблица2[[#This Row],[Статус]],TRUE),\"\")","v":21},{"$f":"IFERROR(INDEX(Таблица2[Наименование],MATCH(ROWS($G$2:Таблица2[[#This Row],[Индекс]]),Таблица2[Индекс],0)),\"\")","v":"Джангл белый"}]
[null,null,null,100,"Джангл бежевый",{"$f":"NOT(ISERROR(SEARCH(Лист1!$H$7,Таблица2[[#This Row],[Наименование]])))","v":true},{"$f":"IF(Таблица2[[#This Row],[Статус]],COUNTIF($F$2:Таблица2[[#This Row],[Статус]],TRUE),\"\")","v":22},{"$f":"IFERROR(INDEX(Таблица2[Наименование],MATCH(ROWS($G$2:Таблица2[[#This Row],[Индекс]]),Таблица2[Индекс],0)),\"\")","v":"Джангл бежевый"}]
[null,null,null,100,"Джангл серебро",{"$f":"NOT(ISERROR(SEARCH(Лист1!$H$7,Таблица2[[#This Row],[Наименование]])))","v":true},{"$f":"IF(Таблица2[[#This Row],[Статус]],COUNTIF($F$2:Таблица2[[#This Row],[Статус]],TRUE),\"\")","v":23},{"$f":"IFERROR(INDEX(Таблица2[Наименование],MATCH(ROWS($G$2:Таблица2[[#This Row],[Индекс]]),Таблица2[Индекс],0)),\"\")","v":"Джангл серебро"}]
[null,null,null,100,"Джангл 7005 (светло розовый) АКЦИЯ ",{"$f":"NOT(ISERROR(SEARCH(Лист1!$H$7,Таблица2[[#This Row],[Наименование]])))","v":true},{"$f":"IF(Таблица2[[#This Row],[Статус]],COUNTIF($F$2:Таблица2[[#This Row],[Статус]],TRUE),\"\")","v":24},{"$f":"IFERROR(INDEX(Таблица2[Наименование],MATCH(ROWS($G$2:Таблица2[[#This Row],[Индекс]]),Таблица2[Индекс],0)),\"\")","v":"Джангл 7005 (светло розовый) АКЦИЯ "}]
[null,null,null,100,"Джангл розовый",{"$f":"NOT(ISERROR(SEARCH(Лист1!$H$7,Таблица2[[#This Row],[Наименование]])))","v":true},{"$f":"IF(Таблица2[[#This Row],[Статус]],COUNTIF($F$2:Таблица2[[#This Row],[Статус]],TRUE),\"\")","v":25},{"$f":"IFERROR(INDEX(Таблица2[Наименование],MATCH(ROWS($G$2:Таблица2[[#This Row],[Индекс]]),Таблица2[Индекс],0)),\"\")","v":"Джангл розовый"}]
[null,null,null,100,"Ёлочка белая",{"$f":"NOT(ISERROR(SEARCH(Лист1!$H$7,Таблица2[[#This Row],[Наименование]])))","v":true},{"$f":"IF(Таблица2[[#This Row],[Статус]],COUNTIF($F$2:Таблица2[[#This Row],[Статус]],TRUE),\"\")","v":26},{"$f":"IFERROR(INDEX(Таблица2[Наименование],MATCH(ROWS($G$2:Таблица2[[#This Row],[Индекс]]),Таблица2[Индекс],0)),\"\")","v":"Ёлочка белая"}]
[null,null,null,100,"Ёлочка персиковая",{"$f":"NOT(ISERROR(SEARCH(Лист1!$H$7,Таблица2[[#This Row],[Наименование]])))","v":true},{"$f":"IF(Таблица2[[#This Row],[Статус]],COUNTIF($F$2:Таблица2[[#This Row],[Статус]],TRUE),\"\")","v":27},{"$f":"IFERROR(INDEX(Таблица2[Наименование],MATCH(ROWS($G$2:Таблица2[[#This Row],[Индекс]]),Таблица2[Индекс],0)),\"\")","v":"Ёлочка персиковая"}]
[null,null,null,100,"Ёлочка кремовая",{"$f":"NOT(ISERROR(SEARCH(Лист1!$H$7,Таблица2[[#This Row],[Наименование]])))","v":true},{"$f":"IF(Таблица2[[#This Row],[Статус]],COUNTIF($F$2:Таблица2[[#This Row],[Статус]],TRUE),\"\")","v":28},{"$f":"IFERROR(INDEX(Таблица2[Наименование],MATCH(ROWS($G$2:Таблица2[[#This Row],[Индекс]]),Таблица2[Индекс],0)),\"\")","v":"Ёлочка кремовая"}]
[null,null,null,100,"Ёлочка бежевая 7860 (Восток) new",{"$f":"NOT(ISERROR(SEARCH(Лист1!$H$7,Таблица2[[#This Row],[Наименование]])))","v":true},{"$f":"IF(Таблица2[[#This Row],[Статус]],COUNTIF($F$2:Таблица2[[#This Row],[Статус]],TRUE),\"\")","v":29},{"$f":"IFERROR(INDEX(Таблица2[Наименование],MATCH(ROWS($G$2:Таблица2[[#This Row],[Индекс]]),Таблица2[Индекс],0)),\"\")","v":"Ёлочка бежевая 7860 (Восток) new"}]
[null,null,null,100,"Ёлочка розовая 7878 (Восток) new",{"$f":"NOT(ISERROR(SEARCH(Лист1!$H$7,Таблица2[[#This Row],[Наименование]])))","v":true},{"$f":"IF(Таблица2[[#This Row],[Статус]],COUNTIF($F$2:Таблица2[[#This Row],[Статус]],TRUE),\"\")","v":30},{"$f":"IFERROR(INDEX(Таблица2[Наименование],MATCH(ROWS($G$2:Таблица2[[#This Row],[Индекс]]),Таблица2[Индекс],0)),\"\")","v":"Ёлочка розовая 7878 (Восток) new"}]
[null,null,null,100,"Ёлочка голубая",{"$f":"NOT(ISERROR(SEARCH(Лист1!$H$7,Таблица2[[#This Row],[Наименование]])))","v":true},{"$f":"IF(Таблица2[[#This Row],[Статус]],COUNTIF($F$2:Таблица2[[#This Row],[Статус]],TRUE),\"\")","v":31},{"$f":"IFERROR(INDEX(Таблица2[Наименование],MATCH(ROWS($G$2:Таблица2[[#This Row],[Индекс]]),Таблица2[Индекс],0)),\"\")","v":"Ёлочка голубая"}]
[null,null,null,100,"Ёлочка салатовая",{"$f":"NOT(ISERROR(SEARCH(Лист1!$H$7,Таблица2[[#This Row],[Наименование]])))","v":true},{"$f":"IF(Таблица2[[#This Row],[Статус]],COUNTIF($F$2:Таблица2[[#This Row],[Статус]],TRUE),\"\")","v":32},{"$f":"IFERROR(INDEX(Таблица2[Наименование],MATCH(ROWS($G$2:Таблица2[[#This Row],[Индекс]]),Таблица2[Индекс],0)),\"\")","v":"Ёлочка салатовая"}]
[null,null,null,100,"Зодиак сиреневый",{"$f":"NOT(ISERROR(SEARCH(Лист1!$H$7,Таблица2[[#This Row],[Наименование]])))","v":true},{"$f":"IF(Таблица2[[#This Row],[Статус]],COUNTIF($F$2:Таблица2[[#This Row],[Статус]],TRUE),\"\")","v":33},{"$f":"IFERROR(INDEX(Таблица2[Наименование],MATCH(ROWS($G$2:Таблица2[[#This Row],[Индекс]]),Таблица2[Индекс],0)),\"\")","v":"Зодиак сиреневый"}]
[null,null,null,100,"Зодиак бежевый",{"$f":"NOT(ISERROR(SEARCH(Лист1!$H$7,Таблица2[[#This Row],[Наименование]])))","v":true},{"$f":"IF(Таблица2[[#This Row],[Статус]],COUNTIF($F$2:Таблица2[[#This Row],[Статус]],TRUE),\"\")","v":34},{"$f":"IFERROR(INDEX(Таблица2[Наименование],MATCH(ROWS($G$2:Таблица2[[#This Row],[Индекс]]),Таблица2[Индекс],0)),\"\")","v":"Зодиак бежевый"}]
[null,null,null,100,"Каир белый",{"$f":"NOT(ISERROR(SEARCH(Лист1!$H$7,Таблица2[[#This Row],[Наименование]])))","v":true},{"$f":"IF(Таблица2[[#This Row],[Статус]],COUNTIF($F$2:Таблица2[[#This Row],[Статус]],TRUE),\"\")","v":35},{"$f":"IFERROR(INDEX(Таблица2[Наименование],MATCH(ROWS($G$2:Таблица2[[#This Row],[Индекс]]),Таблица2[Индекс],0)),\"\")","v":"Каир белый"}]
[null,null,null,100,"Квебек белый",{"$f":"NOT(ISERROR(SEARCH(Лист1!$H$7,Таблица2[[#This Row],[Наименование]])))","v":true},{"$f":"IF(Таблица2[[#This Row],[Статус]],COUNTIF($F$2:Таблица2[[#This Row],[Статус]],TRUE),\"\")","v":36},{"$f":"IFERROR(INDEX(Таблица2[Наименование],MATCH(ROWS($G$2:Таблица2[[#This Row],[Индекс]]),Таблица2[Индекс],0)),\"\")","v":"Квебек белый"}]
[null,null,null,100,"Квебек бежевый new",{"$f":"NOT(ISERROR(SEARCH(Лист1!$H$7,Таблица2[[#This Row],[Наименование]])))","v":true},{"$f":"IF(Таблица2[[#This Row],[Статус]],COUNTIF($F$2:Таблица2[[#This Row],[Статус]],TRUE),\"\")","v":37},{"$f":"IFERROR(INDEX(Таблица2[Наименование],MATCH(ROWS($G$2:Таблица2[[#This Row],[Индекс]]),Таблица2[Индекс],0)),\"\")","v":"Квебек бежевый new"}]
[null,null,null,100,"Квебек темно бежевый",{"$f":"NOT(ISERROR(SEARCH(Лист1!$H$7,Таблица2[[#This Row],[Наименование]])))","v":true},{"$f":"IF(Таблица2[[#This Row],[Статус]],COUNTIF($F$2:Таблица2[[#This Row],[Статус]],TRUE),\"\")","v":38},{"$f":"IFERROR(INDEX(Таблица2[Наименование],MATCH(ROWS($G$2:Таблица2[[#This Row],[Индекс]]),Таблица2[Индекс],0)),\"\")","v":"Квебек темно бежевый"}]
[null,null,null,100,"Квебек коричневый",{"$f":"NOT(ISERROR(SEARCH(Лист1!$H$7,Таблица2[[#This Row],[Наименование]])))","v":true},{"$f":"IF(Таблица2[[#This Row],[Статус]],COUNTIF($F$2:Таблица2[[#This Row],[Статус]],TRUE),\"\")","v":39},{"$f":"IFERROR(INDEX(Таблица2[Наименование],MATCH(ROWS($G$2:Таблица2[[#This Row],[Индекс]]),Таблица2[Индекс],0)),\"\")","v":"Квебек коричневый"}]
[null,null,null,100,"Квебек 19836 (желтый)",{"$f":"NOT(ISERROR(SEARCH(Лист1!$H$7,Таблица2[[#This Row],[Наименование]])))","v":true},{"$f":"IF(Таблица2[[#This Row],[Статус]],COUNTIF($F$2:Таблица2[[#This Row],[Статус]],TRUE),\"\")","v":40},{"$f":"IFERROR(INDEX(Таблица2[Наименование],MATCH(ROWS($G$2:Таблица2[[#This Row],[Индекс]]),Таблица2[Индекс],0)),\"\")","v":"Квебек 19836 (желтый)"}]
[null,null,null,100,"Квебек салатовый",{"$f":"NOT(ISERROR(SEARCH(Лист1!$H$7,Таблица2[[#This Row],[Наименование]])))","v":true},{"$f":"IF(Таблица2[[#This Row],[Статус]],COUNTIF($F$2:Таблица2[[#This Row],[Статус]],TRUE),\"\")","v":41},{"$f":"IFERROR(INDEX(Таблица2[Наименование],MATCH(ROWS($G$2:Таблица2[[#This Row],[Индекс]]),Таблица2[Индекс],0)),\"\")","v":"Квебек салатовый"}]
[null,null,null,100,"Киото белый",{"$f":"NOT(ISERROR(SEARCH(Лист1!$H$7,Таблица2[[#This Row],[Наименование]])))","v":true},{"$f":"IF(Таблица2[[#This Row],[Статус]],COUNTIF($F$2:Таблица2[[#This Row],[Статус]],TRUE),\"\")","v":42},{"$f":"IFERROR(INDEX(Таблица2[Наименование],MATCH(ROWS($G$2:Таблица2[[#This Row],[Индекс]]),Таблица2[Индекс],0)),\"\")","v":"Киото белый"}]
[null,null,null,100,"Киото фиолетовый",{"$f":"NOT(ISERROR(SEARCH(Лист1!$H$7,Таблица2[[#This Row],[Наименование]])))","v":true},{"$f":"IF(Таблица2[[#This Row],[Статус]],COUNTIF($F$2:Таблица2[[#This Row],[Статус]],TRUE),\"\")","v":43},{"$f":"IFERROR(INDEX(Таблица2[Наименование],MATCH(ROWS($G$2:Таблица2[[#This Row],[Индекс]]),Таблица2[Индекс],0)),\"\")","v":"Киото фиолетовый"}]
[null,null,null,100,"Киото голубой",{"$f":"NOT(ISERROR(SEARCH(Лист1!$H$7,Таблица2[[#This Row],[Наименование]])))","v":true},{"$f":"IF(Таблица2[[#This Row],[Статус]],COUNTIF($F$2:Таблица2[[#This Row],[Статус]],TRUE),\"\")","v":44},{"$f":"IFERROR(INDEX(Таблица2[Наименование],MATCH(ROWS($G$2:Таблица2[[#This Row],[Индекс]]),Таблица2[Индекс],0)),\"\")","v":"Киото голубой"}]
[null,null,null,100,"Киото персиковый",{"$f":"NOT(ISERROR(SEARCH(Лист1!$H$7,Таблица2[[#This Row],[Наименование]])))","v":true},{"$f":"IF(Таблица2[[#This Row],[Статус]],COUNTIF($F$2:Таблица2[[#This Row],[Статус]],TRUE),\"\")","v":45},{"$f":"IFERROR(INDEX(Таблица2[Наименование],MATCH(ROWS($G$2:Таблица2[[#This Row],[Индекс]]),Таблица2[Индекс],0)),\"\")","v":"Киото персиковый"}]
[null,null,null,100,"Киото лимон",{"$f":"NOT(ISERROR(SEARCH(Лист1!$H$7,Таблица2[[#This Row],[Наименование]])))","v":true},{"$f":"IF(Таблица2[[#This Row],[Статус]],COUNTIF($F$2:Таблица2[[#This Row],[Статус]],TRUE),\"\")","v":46},{"$f":"IFERROR(INDEX(Таблица2[Наименование],MATCH(ROWS($G$2:Таблица2[[#This Row],[Индекс]]),Таблица2[Индекс],0)),\"\")","v":"Киото лимон"}]
[null,null,null,100,"Киото салатовый",{"$f":"NOT(ISERROR(SEARCH(Лист1!$H$7,Таблица2[[#This Row],[Наименование]])))","v":true},{"$f":"IF(Таблица2[[#This Row],[Статус]],COUNTIF($F$2:Таблица2[[#This Row],[Статус]],TRUE),\"\")","v":47},{"$f":"IFERROR(INDEX(Таблица2[Наименование],MATCH(ROWS($G$2:Таблица2[[#This Row],[Индекс]]),Таблица2[Индекс],0)),\"\")","v":"Киото салатовый"}]
[null,null,null,100,"Киото синий K-12",{"$f":"NOT(ISERROR(SEARCH(Лист1!$H$7,Таблица2[[#This Row],[Наименование]])))","v":true},{"$f":"IF(Таблица2[[#This Row],[Статус]],COUNTIF($F$2:Таблица2[[#This Row],[Статус]],TRUE),\"\")","v":48},{"$f":"IFERROR(INDEX(Таблица2[Наименование],MATCH(ROWS($G$2:Таблица2[[#This Row],[Индекс]]),Таблица2[Индекс],0)),\"\")","v":"Киото синий K-12"}]
[null,null,null,100,"Лайн белый",{"$f":"NOT(ISERROR(SEARCH(Лист1!$H$7,Таблица2[[#This Row],[Наименование]])))","v":true},{"$f":"IF(Таблица2[[#This Row],[Статус]],COUNTIF($F$2:Таблица2[[#This Row],[Статус]],TRUE),\"\")","v":49},{"$f":"IFERROR(INDEX(Таблица2[Наименование],MATCH(ROWS($G$2:Таблица2[[#This Row],[Индекс]]),Таблица2[Индекс],0)),\"\")","v":"Лайн белый"}]
[null,null,null,100,"Лайн бежевый ",{"$f":"NOT(ISERROR(SEARCH(Лист1!$H$7,Таблица2[[#This Row],[Наименование]])))","v":true},{"$f":"IF(Таблица2[[#This Row],[Статус]],COUNTIF($F$2:Таблица2[[#This Row],[Статус]],TRUE),\"\")","v":50},{"$f":"IFERROR(INDEX(Таблица2[Наименование],MATCH(ROWS($G$2:Таблица2[[#This Row],[Индекс]]),Таблица2[Индекс],0)),\"\")","v":"Лайн бежевый "}]
[null,null,null,100,"Лайн темно бежевый",{"$f":"NOT(ISERROR(SEARCH(Лист1!$H$7,Таблица2[[#This Row],[Наименование]])))","v":true},{"$f":"IF(Таблица2[[#This Row],[Статус]],COUNTIF($F$2:Таблица2[[#This Row],[Статус]],TRUE),\"\")","v":51},{"$f":"IFERROR(INDEX(Таблица2[Наименование],MATCH(ROWS($G$2:Таблица2[[#This Row],[Индекс]]),Таблица2[Индекс],0)),\"\")","v":"Лайн темно бежевый"}]
[null,null,null,100,"Лайн бирюза",{"$f":"NOT(ISERROR(SEARCH(Лист1!$H$7,Таблица2[[#This Row],[Наименование]])))","v":true},{"$f":"IF(Таблица2[[#This Row],[Статус]],COUNTIF($F$2:Таблица2[[#This Row],[Статус]],TRUE),\"\")","v":52},{"$f":"IFERROR(INDEX(Таблица2[Наименование],MATCH(ROWS($G$2:Таблица2[[#This Row],[Индекс]]),Таблица2[Индекс],0)),\"\")","v":"Лайн бирюза"}]
[null,null,null,100,"Лайн желтый",{"$f":"NOT(ISERROR(SEARCH(Лист1!$H$7,Таблица2[[#This Row],[Наименование]])))","v":true},{"$f":"IF(Таблица2[[#This Row],[Статус]],COUNTIF($F$2:Таблица2[[#This Row],[Статус]],TRUE),\"\")","v":53},{"$f":"IFERROR(INDEX(Таблица2[Наименование],MATCH(ROWS($G$2:Таблица2[[#This Row],[Индекс]]),Таблица2[Индекс],0)),\"\")","v":"Лайн желтый"}]
[null,null,null,100,"Лайн ярко желтый",{"$f":"NOT(ISERROR(SEARCH(Лист1!$H$7,Таблица2[[#This Row],[Наименование]])))","v":true},{"$f":"IF(Таблица2[[#This Row],[Статус]],COUNTIF($F$2:Таблица2[[#This Row],[Статус]],TRUE),\"\")","v":54},{"$f":"IFERROR(INDEX(Таблица2[Наименование],MATCH(ROWS($G$2:Таблица2[[#This Row],[Индекс]]),Таблица2[Индекс],0)),\"\")","v":"Лайн ярко желтый"}]
[null,null,null,100,"Лайн красный",{"$f":"NOT(ISERROR(SEARCH(Лист1!$H$7,Таблица2[[#This Row],[Наименование]])))","v":true},{"$f":"IF(Таблица2[[#This Row],[Статус]],COUNTIF($F$2:Таблица2[[#This Row],[Статус]],TRUE),\"\")","v":55},{"$f":"IFERROR(INDEX(Таблица2[Наименование],MATCH(ROWS($G$2:Таблица2[[#This Row],[Индекс]]),Таблица2[Индекс],0)),\"\")","v":"Лайн красный"}]
[null,null,null,100,"Лайн синий L-09 (темный)",{"$f":"NOT(ISERROR(SEARCH(Лист1!$H$7,Таблица2[[#This Row],[Наименование]])))","v":true},{"$f":"IF(Таблица2[[#This Row],[Статус]],COUNTIF($F$2:Таблица2[[#This Row],[Статус]],TRUE),\"\")","v":56},{"$f":"IFERROR(INDEX(Таблица2[Наименование],MATCH(ROWS($G$2:Таблица2[[#This Row],[Индекс]]),Таблица2[Индекс],0)),\"\")","v":"Лайн синий L-09 (темный)"}]
[null,null,null,100,"Лайн светло бежевый",{"$f":"NOT(ISERROR(SEARCH(Лист1!$H$7,Таблица2[[#This Row],[Наименование]])))","v":true},{"$f":"IF(Таблица2[[#This Row],[Статус]],COUNTIF($F$2:Таблица2[[#This Row],[Статус]],TRUE),\"\")","v":57},{"$f":"IFERROR(INDEX(Таблица2[Наименование],MATCH(ROWS($G$2:Таблица2[[#This Row],[Индекс]]),Таблица2[Индекс],0)),\"\")","v":"Лайн светло бежевый"}]
[null,null,null,100,"Лайн 94 голубой",{"$f":"NOT(ISERROR(SEARCH(Лист1!$H$7,Таблица2[[#This Row],[Наименование]])))","v":true},{"$f":"IF(Таблица2[[#This Row],[Статус]],COUNTIF($F$2:Таблица2[[#This Row],[Статус]],TRUE),\"\")","v":58},{"$f":"IFERROR(INDEX(Таблица2[Наименование],MATCH(ROWS($G$2:Таблица2[[#This Row],[Индекс]]),Таблица2[Индекс],0)),\"\")","v":"Лайн 94 голубой"}]
[null,null,null,100,"Лайн оранжевый",{"$f":"NOT(ISERROR(SEARCH(Лист1!$H$7,Таблица2[[#This Row],[Наименование]])))","v":true},{"$f":"IF(Таблица2[[#This Row],[Статус]],COUNTIF($F$2:Таблица2[[#This Row],[Статус]],TRUE),\"\")","v":59},{"$f":"IFERROR(INDEX(Таблица2[Наименование],MATCH(ROWS($G$2:Таблица2[[#This Row],[Индекс]]),Таблица2[Индекс],0)),\"\")","v":"Лайн оранжевый"}]
[null,null,null,100,"Лайн персиковый",{"$f":"NOT(ISERROR(SEARCH(Лист1!$H$7,Таблица2[[#This Row],[Наименование]])))","v":true},{"$f":"IF(Таблица2[[#This Row],[Статус]],COUNTIF($F$2:Таблица2[[#This Row],[Статус]],TRUE),\"\")","v":60},{"$f":"IFERROR(INDEX(Таблица2[Наименование],MATCH(ROWS($G$2:Таблица2[[#This Row],[Индекс]]),Таблица2[Индекс],0)),\"\")","v":"Лайн персиковый"}]
[null,null,null,100,"Лайн абрикосовый ",{"$f":"NOT(ISERROR(SEARCH(Лист1!$H$7,Таблица2[[#This Row],[Наименование]])))","v":true},{"$f":"IF(Таблица2[[#This Row],[Статус]],COUNTIF($F$2:Таблица2[[#This Row],[Статус]],TRUE),\"\")","v":61},{"$f":"IFERROR(INDEX(Таблица2[Наименование],MATCH(ROWS($G$2:Таблица2[[#This Row],[Индекс]]),Таблица2[Индекс],0)),\"\")","v":"Лайн абрикосовый "}]
[null,null,null,100,"Лайн морковный ",{"$f":"NOT(ISERROR(SEARCH(Лист1!$H$7,Таблица2[[#This Row],[Наименование]])))","v":true},{"$f":"IF(Таблица2[[#This Row],[Статус]],COUNTIF($F$2:Таблица2[[#This Row],[Статус]],TRUE),\"\")","v":62},{"$f":"IFERROR(INDEX(Таблица2[Наименование],MATCH(ROWS($G$2:Таблица2[[#This Row],[Индекс]]),Таблица2[Индекс],0)),\"\")","v":"Лайн морковный "}]
[null,null,null,100,"Лайн голубой new (Восток)",{"$f":"NOT(ISERROR(SEARCH(Лист1!$H$7,Таблица2[[#This Row],[Наименование]])))","v":true},{"$f":"IF(Таблица2[[#This Row],[Статус]],COUNTIF($F$2:Таблица2[[#This Row],[Статус]],TRUE),\"\")","v":63},{"$f":"IFERROR(INDEX(Таблица2[Наименование],MATCH(ROWS($G$2:Таблица2[[#This Row],[Индекс]]),Таблица2[Индекс],0)),\"\")","v":"Лайн голубой new (Восток)"}]
[null,null,null,100,"Лайн светло голубой",{"$f":"NOT(ISERROR(SEARCH(Лист1!$H$7,Таблица2[[#This Row],[Наименование]])))","v":true},{"$f":"IF(Таблица2[[#This Row],[Статус]],COUNTIF($F$2:Таблица2[[#This Row],[Статус]],TRUE),\"\")","v":64},{"$f":"IFERROR(INDEX(Таблица2[Наименование],MATCH(ROWS($G$2:Таблица2[[#This Row],[Индекс]]),Таблица2[Индекс],0)),\"\")","v":"Лайн светло голубой"}]
[null,null,null,100,"Лайн синий",{"$f":"NOT(ISERROR(SEARCH(Лист1!$H$7,Таблица2[[#This Row],[Наименование]])))","v":true},{"$f":"IF(Таблица2[[#This Row],[Статус]],COUNTIF($F$2:Таблица2[[#This Row],[Статус]],TRUE),\"\")","v":65},{"$f":"IFERROR(INDEX(Таблица2[Наименование],MATCH(ROWS($G$2:Таблица2[[#This Row],[Индекс]]),Таблица2[Индекс],0)),\"\")","v":"Лайн синий"}]
[null,null,null,100,"Лайн светло розовый",{"$f":"NOT(ISERROR(SEARCH(Лист1!$H$7,Таблица2[[#This Row],[Наименование]])))","v":true},{"$f":"IF(Таблица2[[#This Row],[Статус]],COUNTIF($F$2:Таблица2[[#This Row],[Статус]],TRUE),\"\")","v":66},{"$f":"IFERROR(INDEX(Таблица2[Наименование],MATCH(ROWS($G$2:Таблица2[[#This Row],[Индекс]]),Таблица2[Индекс],0)),\"\")","v":"Лайн светло розовый"}]
[null,null,null,100,"Лайн терракотовый",{"$f":"NOT(ISERROR(SEARCH(Лист1!$H$7,Таблица2[[#This Row],[Наименование]])))","v":true},{"$f":"IF(Таблица2[[#This Row],[Статус]],COUNTIF($F$2:Таблица2[[#This Row],[Статус]],TRUE),\"\")","v":67},{"$f":"IFERROR(INDEX(Таблица2[Наименование],MATCH(ROWS($G$2:Таблица2[[#This Row],[Индекс]]),Таблица2[Индекс],0)),\"\")","v":"Лайн терракотовый"}]
[null,null,null,100,"Лайн серый",{"$f":"NOT(ISERROR(SEARCH(Лист1!$H$7,Таблица2[[#This Row],[Наименование]])))","v":true},{"$f":"IF(Таблица2[[#This Row],[Статус]],COUNTIF($F$2:Таблица2[[#This Row],[Статус]],TRUE),\"\")","v":68},{"$f":"IFERROR(INDEX(Таблица2[Наименование],MATCH(ROWS($G$2:Таблица2[[#This Row],[Индекс]]),Таблица2[Индекс],0)),\"\")","v":"Лайн серый"}]
[null,null,null,100,"Лайн 7418 (темно зеленый)",{"$f":"NOT(ISERROR(SEARCH(Лист1!$H$7,Таблица2[[#This Row],[Наименование]])))","v":true},{"$f":"IF(Таблица2[[#This Row],[Статус]],COUNTIF($F$2:Таблица2[[#This Row],[Статус]],TRUE),\"\")","v":69},{"$f":"IFERROR(INDEX(Таблица2[Наименование],MATCH(ROWS($G$2:Таблица2[[#This Row],[Индекс]]),Таблица2[Индекс],0)),\"\")","v":"Лайн 7418 (темно зеленый)"}]
[null,null,null,100,"Лайн светло зеленый",{"$f":"NOT(ISERROR(SEARCH(Лист1!$H$7,Таблица2[[#This Row],[Наименование]])))","v":true},{"$f":"IF(Таблица2[[#This Row],[Статус]],COUNTIF($F$2:Таблица2[[#This Row],[Статус]],TRUE),\"\")","v":70},{"$f":"IFERROR(INDEX(Таблица2[Наименование],MATCH(ROWS($G$2:Таблица2[[#This Row],[Индекс]]),Таблица2[Индекс],0)),\"\")","v":"Лайн светло зеленый"}]
[null,null,null,100,"Лайн 7475 (зеленое яблоко) new",{"$f":"NOT(ISERROR(SEARCH(Лист1!$H$7,Таблица2[[#This Row],[Наименование]])))","v":true},{"$f":"IF(Таблица2[[#This Row],[Статус]],COUNTIF($F$2:Таблица2[[#This Row],[Статус]],TRUE),\"\")","v":71},{"$f":"IFERROR(INDEX(Таблица2[Наименование],MATCH(ROWS($G$2:Таблица2[[#This Row],[Индекс]]),Таблица2[Индекс],0)),\"\")","v":"Лайн 7475 (зеленое яблоко) new"}]
[null,null,null,100,"Лайн 7490 (черный)",{"$f":"NOT(ISERROR(SEARCH(Лист1!$H$7,Таблица2[[#This Row],[Наименование]])))","v":true},{"$f":"IF(Таблица2[[#This Row],[Статус]],COUNTIF($F$2:Таблица2[[#This Row],[Статус]],TRUE),\"\")","v":72},{"$f":"IFERROR(INDEX(Таблица2[Наименование],MATCH(ROWS($G$2:Таблица2[[#This Row],[Индекс]]),Таблица2[Индекс],0)),\"\")","v":"Лайн 7490 (черный)"}]
[null,null,null,100,"Магнолия 1056 морковная",{"$f":"NOT(ISERROR(SEARCH(Лист1!$H$7,Таблица2[[#This Row],[Наименование]])))","v":true},{"$f":"IF(Таблица2[[#This Row],[Статус]],COUNTIF($F$2:Таблица2[[#This Row],[Статус]],TRUE),\"\")","v":73},{"$f":"IFERROR(INDEX(Таблица2[Наименование],MATCH(ROWS($G$2:Таблица2[[#This Row],[Индекс]]),Таблица2[Индекс],0)),\"\")","v":"Магнолия 1056 морковная"}]
[null,null,null,100,"Магнолия 1083 зеленое яблоко",{"$f":"NOT(ISERROR(SEARCH(Лист1!$H$7,Таблица2[[#This Row],[Наименование]])))","v":true},{"$f":"IF(Таблица2[[#This Row],[Статус]],COUNTIF($F$2:Таблица2[[#This Row],[Статус]],TRUE),\"\")","v":74},{"$f":"IFERROR(INDEX(Таблица2[Наименование],MATCH(ROWS($G$2:Таблица2[[#This Row],[Индекс]]),Таблица2[Индекс],0)),\"\")","v":"Магнолия 1083 зеленое яблоко"}]
[null,null,null,100,"Магнолия 1017 голубая",{"$f":"NOT(ISERROR(SEARCH(Лист1!$H$7,Таблица2[[#This Row],[Наименование]])))","v":true},{"$f":"IF(Таблица2[[#This Row],[Статус]],COUNTIF($F$2:Таблица2[[#This Row],[Статус]],TRUE),\"\")","v":75},{"$f":"IFERROR(INDEX(Таблица2[Наименование],MATCH(ROWS($G$2:Таблица2[[#This Row],[Индекс]]),Таблица2[Индекс],0)),\"\")","v":"Магнолия 1017 голубая"}]
[null,null,null,100,"Магнолия 1076 салатовая",{"$f":"NOT(ISERROR(SEARCH(Лист1!$H$7,Таблица2[[#This Row],[Наименование]])))","v":true},{"$f":"IF(Таблица2[[#This Row],[Статус]],COUNTIF($F$2:Таблица2[[#This Row],[Статус]],TRUE),\"\")","v":76},{"$f":"IFERROR(INDEX(Таблица2[Наименование],MATCH(ROWS($G$2:Таблица2[[#This Row],[Индекс]]),Таблица2[Индекс],0)),\"\")","v":"Магнолия 1076 салатовая"}]
[null,null,null,100,"Магнолия 1011 (белый) АКЦИЯ",{"$f":"NOT(ISERROR(SEARCH(Лист1!$H$7,Таблица2[[#This Row],[Наименование]])))","v":true},{"$f":"IF(Таблица2[[#This Row],[Статус]],COUNTIF($F$2:Таблица2[[#This Row],[Статус]],TRUE),\"\")","v":77},{"$f":"IFERROR(INDEX(Таблица2[Наименование],MATCH(ROWS($G$2:Таблица2[[#This Row],[Индекс]]),Таблица2[Индекс],0)),\"\")","v":"Магнолия 1011 (белый) АКЦИЯ"}]
[null,null,null,100,"Магнолия 1077 (пшеничный) АКЦИЯ",{"$f":"NOT(ISERROR(SEARCH(Лист1!$H$7,Таблица2[[#This Row],[Наименование]])))","v":true},{"$f":"IF(Таблица2[[#This Row],[Статус]],COUNTIF($F$2:Таблица2[[#This Row],[Статус]],TRUE),\"\")","v":78},{"$f":"IFERROR(INDEX(Таблица2[Наименование],MATCH(ROWS($G$2:Таблица2[[#This Row],[Индекс]]),Таблица2[Индекс],0)),\"\")","v":"Магнолия 1077 (пшеничный) АКЦИЯ"}]
[null,null,null,100,"Магнолия 1032 (бежевый) АКЦИЯ",{"$f":"NOT(ISERROR(SEARCH(Лист1!$H$7,Таблица2[[#This Row],[Наименование]])))","v":true},{"$f":"IF(Таблица2[[#This Row],[Статус]],COUNTIF($F$2:Таблица2[[#This Row],[Статус]],TRUE),\"\")","v":79},{"$f":"IFERROR(INDEX(Таблица2[Наименование],MATCH(ROWS($G$2:Таблица2[[#This Row],[Индекс]]),Таблица2[Индекс],0)),\"\")","v":"Магнолия 1032 (бежевый) АКЦИЯ"}]
[null,null,null,100,"Мистери белый",{"$f":"NOT(ISERROR(SEARCH(Лист1!$H$7,Таблица2[[#This Row],[Наименование]])))","v":true},{"$f":"IF(Таблица2[[#This Row],[Статус]],COUNTIF($F$2:Таблица2[[#This Row],[Статус]],TRUE),\"\")","v":80},{"$f":"IFERROR(INDEX(Таблица2[Наименование],MATCH(ROWS($G$2:Таблица2[[#This Row],[Индекс]]),Таблица2[Индекс],0)),\"\")","v":"Мистери белый"}]
[null,null,null,100,"Мистери розовый",{"$f":"NOT(ISERROR(SEARCH(Лист1!$H$7,Таблица2[[#This Row],[Наименование]])))","v":true},{"$f":"IF(Таблица2[[#This Row],[Статус]],COUNTIF($F$2:Таблица2[[#This Row],[Статус]],TRUE),\"\")","v":81},{"$f":"IFERROR(INDEX(Таблица2[Наименование],MATCH(ROWS($G$2:Таблица2[[#This Row],[Индекс]]),Таблица2[Индекс],0)),\"\")","v":"Мистери розовый"}]
[null,null,null,100,"Мистери салатовый",{"$f":"NOT(ISERROR(SEARCH(Лист1!$H$7,Таблица2[[#This Row],[Наименование]])))","v":true},{"$f":"IF(Таблица2[[#This Row],[Статус]],COUNTIF($F$2:Таблица2[[#This Row],[Статус]],TRUE),\"\")","v":82},{"$f":"IFERROR(INDEX(Таблица2[Наименование],MATCH(ROWS($G$2:Таблица2[[#This Row],[Индекс]]),Таблица2[Индекс],0)),\"\")","v":"Мистери салатовый"}]
[null,null,null,100,"Мистери фиолетовый",{"$f":"NOT(ISERROR(SEARCH(Лист1!$H$7,Таблица2[[#This Row],[Наименование]])))","v":true},{"$f":"IF(Таблица2[[#This Row],[Статус]],COUNTIF($F$2:Таблица2[[#This Row],[Статус]],TRUE),\"\")","v":83},{"$f":"IFERROR(INDEX(Таблица2[Наименование],MATCH(ROWS($G$2:Таблица2[[#This Row],[Индекс]]),Таблица2[Индекс],0)),\"\")","v":"Мистери фиолетовый"}]
[null,null,null,100,"Мистери красный АКЦИЯ",{"$f":"NOT(ISERROR(SEARCH(Лист1!$H$7,Таблица2[[#This Row],[Наименование]])))","v":true},{"$f":"IF(Таблица2[[#This Row],[Статус]],COUNTIF($F$2:Таблица2[[#This Row],[Статус]],TRUE),\"\")","v":84},{"$f":"IFERROR(INDEX(Таблица2[Наименование],MATCH(ROWS($G$2:Таблица2[[#This Row],[Индекс]]),Таблица2[Индекс],0)),\"\")","v":"Мистери красный АКЦИЯ"}]
[null,null,null,100,"Мистери оранжевый",{"$f":"NOT(ISERROR(SEARCH(Лист1!$H$7,Таблица2[[#This Row],[Наименование]])))","v":true},{"$f":"IF(Таблица2[[#This Row],[Статус]],COUNTIF($F$2:Таблица2[[#This Row],[Статус]],TRUE),\"\")","v":85},{"$f":"IFERROR(INDEX(Таблица2[Наименование],MATCH(ROWS($G$2:Таблица2[[#This Row],[Индекс]]),Таблица2[Индекс],0)),\"\")","v":"Мистери оранжевый"}]
[null,null,null,100,"Мистери морковный new",{"$f":"NOT(ISERROR(SEARCH(Лист1!$H$7,Таблица2[[#This Row],[Наименование]])))","v":true},{"$f":"IF(Таблица2[[#This Row],[Статус]],COUNTIF($F$2:Таблица2[[#This Row],[Статус]],TRUE),\"\")","v":86},{"$f":"IFERROR(INDEX(Таблица2[Наименование],MATCH(ROWS($G$2:Таблица2[[#This Row],[Индекс]]),Таблица2[Индекс],0)),\"\")","v":"Мистери морковный new"}]
[null,null,null,100,"Мистери вишня",{"$f":"NOT(ISERROR(SEARCH(Лист1!$H$7,Таблица2[[#This Row],[Наименование]])))","v":true},{"$f":"IF(Таблица2[[#This Row],[Статус]],COUNTIF($F$2:Таблица2[[#This Row],[Статус]],TRUE),\"\")","v":87},{"$f":"IFERROR(INDEX(Таблица2[Наименование],MATCH(ROWS($G$2:Таблица2[[#This Row],[Индекс]]),Таблица2[Индекс],0)),\"\")","v":"Мистери вишня"}]
[null,null,null,100,"Мистери бежевый",{"$f":"NOT(ISERROR(SEARCH(Лист1!$H$7,Таблица2[[#This Row],[Наименование]])))","v":true},{"$f":"IF(Таблица2[[#This Row],[Статус]],COUNTIF($F$2:Таблица2[[#This Row],[Статус]],TRUE),\"\")","v":88},{"$f":"IFERROR(INDEX(Таблица2[Наименование],MATCH(ROWS($G$2:Таблица2[[#This Row],[Индекс]]),Таблица2[Индекс],0)),\"\")","v":"Мистери бежевый"}]
[null,null,null,100,"Мистери изумруд АКЦИЯ",{"$f":"NOT(ISERROR(SEARCH(Лист1!$H$7,Таблица2[[#This Row],[Наименование]])))","v":true},{"$f":"IF(Таблица2[[#This Row],[Статус]],COUNTIF($F$2:Таблица2[[#This Row],[Статус]],TRUE),\"\")","v":89},{"$f":"IFERROR(INDEX(Таблица2[Наименование],MATCH(ROWS($G$2:Таблица2[[#This Row],[Индекс]]),Таблица2[Индекс],0)),\"\")","v":"Мистери изумруд АКЦИЯ"}]
[null,null,null,100,"Мистери синий АКЦИЯ",{"$f":"NOT(ISERROR(SEARCH(Лист1!$H$7,Таблица2[[#This Row],[Наименование]])))","v":true},{"$f":"IF(Таблица2[[#This Row],[Статус]],COUNTIF($F$2:Таблица2[[#This Row],[Статус]],TRUE),\"\")","v":90},{"$f":"IFERROR(INDEX(Таблица2[Наименование],MATCH(ROWS($G$2:Таблица2[[#This Row],[Индекс]]),Таблица2[Индекс],0)),\"\")","v":"Мистери синий АКЦИЯ"}]
[null,null,null,100,"Мистери ярко желтый",{"$f":"NOT(ISERROR(SEARCH(Лист1!$H$7,Таблица2[[#This Row],[Наименование]])))","v":true},{"$f":"IF(Таблица2[[#This Row],[Статус]],COUNTIF($F$2:Таблица2[[#This Row],[Статус]],TRUE),\"\")","v":91},{"$f":"IFERROR(INDEX(Таблица2[Наименование],MATCH(ROWS($G$2:Таблица2[[#This Row],[Индекс]]),Таблица2[Индекс],0)),\"\")","v":"Мистери ярко желтый"}]
[null,null,null,100,"Мистери сиреневый",{"$f":"NOT(ISERROR(SEARCH(Лист1!$H$7,Таблица2[[#This Row],[Наименование]])))","v":true},{"$f":"IF(Таблица2[[#This Row],[Статус]],COUNTIF($F$2:Таблица2[[#This Row],[Статус]],TRUE),\"\")","v":92},{"$f":"IFERROR(INDEX(Таблица2[Наименование],MATCH(ROWS($G$2:Таблица2[[#This Row],[Индекс]]),Таблица2[Индекс],0)),\"\")","v":"Мистери сиреневый"}]
[null,null,null,100,"Мистери терракотовый",{"$f":"NOT(ISERROR(SEARCH(Лист1!$H$7,Таблица2[[#This Row],[Наименование]])))","v":true},{"$f":"IF(Таблица2[[#This Row],[Статус]],COUNTIF($F$2:Таблица2[[#This Row],[Статус]],TRUE),\"\")","v":93},{"$f":"IFERROR(INDEX(Таблица2[Наименование],MATCH(ROWS($G$2:Таблица2[[#This Row],[Индекс]]),Таблица2[Индекс],0)),\"\")","v":"Мистери терракотовый"}]
[null,null,null,100,"Мистери светло зелёный",{"$f":"NOT(ISERROR(SEARCH(Лист1!$H$7,Таблица2[[#This Row],[Наименование]])))","v":true},{"$f":"IF(Таблица2[[#This Row],[Статус]],COUNTIF($F$2:Таблица2[[#This Row],[Статус]],TRUE),\"\")","v":94},{"$f":"IFERROR(INDEX(Таблица2[Наименование],MATCH(ROWS($G$2:Таблица2[[#This Row],[Индекс]]),Таблица2[Индекс],0)),\"\")","v":"Мистери светло зелёный"}]
[null,null,null,100,"Мистери голубой",{"$f":"NOT(ISERROR(SEARCH(Лист1!$H$7,Таблица2[[#This Row],[Наименование]])))","v":true},{"$f":"IF(Таблица2[[#This Row],[Статус]],COUNTIF($F$2:Таблица2[[#This Row],[Статус]],TRUE),\"\")","v":95},{"$f":"IFERROR(INDEX(Таблица2[Наименование],MATCH(ROWS($G$2:Таблица2[[#This Row],[Индекс]]),Таблица2[Индекс],0)),\"\")","v":"Мистери голубой"}]
[null,null,null,100,"Мистери бордо",{"$f":"NOT(ISERROR(SEARCH(Лист1!$H$7,Таблица2[[#This Row],[Наименование]])))","v":true},{"$f":"IF(Таблица2[[#This Row],[Статус]],COUNTIF($F$2:Таблица2[[#This Row],[Статус]],TRUE),\"\")","v":96},{"$f":"IFERROR(INDEX(Таблица2[Наименование],MATCH(ROWS($G$2:Таблица2[[#This Row],[Индекс]]),Таблица2[Индекс],0)),\"\")","v":"Мистери бордо"}]
[null,null,null,100,"Мистери коричневый АКЦИЯ",{"$f":"NOT(ISERROR(SEARCH(Лист1!$H$7,Таблица2[[#This Row],[Наименование]])))","v":true},{"$f":"IF(Таблица2[[#This Row],[Статус]],COUNTIF($F$2:Таблица2[[#This Row],[Статус]],TRUE),\"\")","v":97},{"$f":"IFERROR(INDEX(Таблица2[Наименование],MATCH(ROWS($G$2:Таблица2[[#This Row],[Индекс]]),Таблица2[Индекс],0)),\"\")","v":"Мистери коричневый АКЦИЯ"}]
[null,null,null,100,"Металлик красный",{"$f":"NOT(ISERROR(SEARCH(Лист1!$H$7,Таблица2[[#This Row],[Наименование]])))","v":true},{"$f":"IF(Таблица2[[#This Row],[Статус]],COUNTIF($F$2:Таблица2[[#This Row],[Статус]],TRUE),\"\")","v":98},{"$f":"IFERROR(INDEX(Таблица2[Наименование],MATCH(ROWS($G$2:Таблица2[[#This Row],[Индекс]]),Таблица2[Индекс],0)),\"\")","v":"Металлик красный"}]
[null,null,null,100,"Металлик голубой",{"$f":"NOT(ISERROR(SEARCH(Лист1!$H$7,Таблица2[[#This Row],[Наименование]])))","v":true},{"$f":"IF(Таблица2[[#This Row],[Статус]],COUNTIF($F$2:Таблица2[[#This Row],[Статус]],TRUE),\"\")","v":99},{"$f":"IFERROR(INDEX(Таблица2[Наименование],MATCH(ROWS($G$2:Таблица2[[#This Row],[Индекс]]),Таблица2[Индекс],0)),\"\")","v":"Металлик голубой"}]
[null,null,null,100,"Венеция золото",{"$f":"NOT(ISERROR(SEARCH(Лист1!$H$7,Таблица2[[#This Row],[Наименование]])))","v":true},{"$f":"IF(Таблица2[[#This Row],[Статус]],COUNTIF($F$2:Таблица2[[#This Row],[Статус]],TRUE),\"\")","v":100},{"$f":"IFERROR(INDEX(Таблица2[Наименование],MATCH(ROWS($G$2:Таблица2[[#This Row],[Индекс]]),Таблица2[Индекс],0)),\"\")","v":"Венеция золото"}]
[null,null,null,100,"Венеция серебро",{"$f":"NOT(ISERROR(SEARCH(Лист1!$H$7,Таблица2[[#This Row],[Наименование]])))","v":true},{"$f":"IF(Таблица2[[#This Row],[Статус]],COUNTIF($F$2:Таблица2[[#This Row],[Статус]],TRUE),\"\")","v":101},{"$f":"IFERROR(INDEX(Таблица2[Наименование],MATCH(ROWS($G$2:Таблица2[[#This Row],[Индекс]]),Таблица2[Индекс],0)),\"\")","v":"Венеция серебро"}]
[null,null,null,100,"Металлик фиолетовый",{"$f":"NOT(ISERROR(SEARCH(Лист1!$H$7,Таблица2[[#This Row],[Наименование]])))","v":true},{"$f":"IF(Таблица2[[#This Row],[Статус]],COUNTIF($F$2:Таблица2[[#This Row],[Статус]],TRUE),\"\")","v":102},{"$f":"IFERROR(INDEX(Таблица2[Наименование],MATCH(ROWS($G$2:Таблица2[[#This Row],[Индекс]]),Таблица2[Индекс],0)),\"\")","v":"Металлик фиолетовый"}]
[null,null,null,100,"Оптима зеленый",{"$f":"NOT(ISERROR(SEARCH(Лист1!$H$7,Таблица2[[#This Row],[Наименование]])))","v":true},{"$f":"IF(Таблица2[[#This Row],[Статус]],COUNTIF($F$2:Таблица2[[#This Row],[Статус]],TRUE),\"\")","v":103},{"$f":"IFERROR(INDEX(Таблица2[Наименование],MATCH(ROWS($G$2:Таблица2[[#This Row],[Индекс]]),Таблица2[Индекс],0)),\"\")","v":"Оптима зеленый"}]
[null,null,null,100,"Оптима салатовый",{"$f":"NOT(ISERROR(SEARCH(Лист1!$H$7,Таблица2[[#This Row],[Наименование]])))","v":true},{"$f":"IF(Таблица2[[#This Row],[Статус]],COUNTIF($F$2:Таблица2[[#This Row],[Статус]],TRUE),\"\")","v":104},{"$f":"IFERROR(INDEX(Таблица2[Наименование],MATCH(ROWS($G$2:Таблица2[[#This Row],[Индекс]]),Таблица2[Индекс],0)),\"\")","v":"Оптима салатовый"}]
[null,null,null,100,"Оптима персиковый",{"$f":"NOT(ISERROR(SEARCH(Лист1!$H$7,Таблица2[[#This Row],[Наименование]])))","v":true},{"$f":"IF(Таблица2[[#This Row],[Статус]],COUNTIF($F$2:Таблица2[[#This Row],[Статус]],TRUE),\"\")","v":105},{"$f":"IFERROR(INDEX(Таблица2[Наименование],MATCH(ROWS($G$2:Таблица2[[#This Row],[Индекс]]),Таблица2[Индекс],0)),\"\")","v":"Оптима персиковый"}]
[null,null,null,100,"Оптима голубой",{"$f":"NOT(ISERROR(SEARCH(Лист1!$H$7,Таблица2[[#This Row],[Наименование]])))","v":true},{"$f":"IF(Таблица2[[#This Row],[Статус]],COUNTIF($F$2:Таблица2[[#This Row],[Статус]],TRUE),\"\")","v":106},{"$f":"IFERROR(INDEX(Таблица2[Наименование],MATCH(ROWS($G$2:Таблица2[[#This Row],[Индекс]]),Таблица2[Индекс],0)),\"\")","v":"Оптима голубой"}]
[null,null,null,100,"Оптима бежевый",{"$f":"NOT(ISERROR(SEARCH(Лист1!$H$7,Таблица2[[#This Row],[Наименование]])))","v":true},{"$f":"IF(Таблица2[[#This Row],[Статус]],COUNTIF($F$2:Таблица2[[#This Row],[Статус]],TRUE),\"\")","v":107},{"$f":"IFERROR(INDEX(Таблица2[Наименование],MATCH(ROWS($G$2:Таблица2[[#This Row],[Индекс]]),Таблица2[Индекс],0)),\"\")","v":"Оптима бежевый"}]
[null,null,null,100,"Полюс желтый",{"$f":"NOT(ISERROR(SEARCH(Лист1!$H$7,Таблица2[[#This Row],[Наименование]])))","v":true},{"$f":"IF(Таблица2[[#This Row],[Статус]],COUNTIF($F$2:Таблица2[[#This Row],[Статус]],TRUE),\"\")","v":108},{"$f":"IFERROR(INDEX(Таблица2[Наименование],MATCH(ROWS($G$2:Таблица2[[#This Row],[Индекс]]),Таблица2[Индекс],0)),\"\")","v":"Полюс желтый"}]
[null,null,null,100,"Полюс зеленый",{"$f":"NOT(ISERROR(SEARCH(Лист1!$H$7,Таблица2[[#This Row],[Наименование]])))","v":true},{"$f":"IF(Таблица2[[#This Row],[Статус]],COUNTIF($F$2:Таблица2[[#This Row],[Статус]],TRUE),\"\")","v":109},{"$f":"IFERROR(INDEX(Таблица2[Наименование],MATCH(ROWS($G$2:Таблица2[[#This Row],[Индекс]]),Таблица2[Индекс],0)),\"\")","v":"Полюс зеленый"}]
[null,null,null,100,"Радуга белая",{"$f":"NOT(ISERROR(SEARCH(Лист1!$H$7,Таблица2[[#This Row],[Наименование]])))","v":true},{"$f":"IF(Таблица2[[#This Row],[Статус]],COUNTIF($F$2:Таблица2[[#This Row],[Статус]],TRUE),\"\")","v":110},{"$f":"IFERROR(INDEX(Таблица2[Наименование],MATCH(ROWS($G$2:Таблица2[[#This Row],[Индекс]]),Таблица2[Индекс],0)),\"\")","v":"Радуга белая"}]
[null,null,null,100,"Радуга синяя",{"$f":"NOT(ISERROR(SEARCH(Лист1!$H$7,Таблица2[[#This Row],[Наименование]])))","v":true},{"$f":"IF(Таблица2[[#This Row],[Статус]],COUNTIF($F$2:Таблица2[[#This Row],[Статус]],TRUE),\"\")","v":111},{"$f":"IFERROR(INDEX(Таблица2[Наименование],MATCH(ROWS($G$2:Таблица2[[#This Row],[Индекс]]),Таблица2[Индекс],0)),\"\")","v":"Радуга синяя"}]
[null,null,null,100,"Сахара 01 (белая)",{"$f":"NOT(ISERROR(SEARCH(Лист1!$H$7,Таблица2[[#This Row],[Наименование]])))","v":true},{"$f":"IF(Таблица2[[#This Row],[Статус]],COUNTIF($F$2:Таблица2[[#This Row],[Статус]],TRUE),\"\")","v":112},{"$f":"IFERROR(INDEX(Таблица2[Наименование],MATCH(ROWS($G$2:Таблица2[[#This Row],[Индекс]]),Таблица2[Индекс],0)),\"\")","v":"Сахара 01 (белая)"}]
[null,null,null,100,"Сахара 02 (бежевая)",{"$f":"NOT(ISERROR(SEARCH(Лист1!$H$7,Таблица2[[#This Row],[Наименование]])))","v":true},{"$f":"IF(Таблица2[[#This Row],[Статус]],COUNTIF($F$2:Таблица2[[#This Row],[Статус]],TRUE),\"\")","v":113},{"$f":"IFERROR(INDEX(Таблица2[Наименование],MATCH(ROWS($G$2:Таблица2[[#This Row],[Индекс]]),Таблица2[Индекс],0)),\"\")","v":"Сахара 02 (бежевая)"}]
[null,null,null,100,"Союз 03 белый",{"$f":"NOT(ISERROR(SEARCH(Лист1!$H$7,Таблица2[[#This Row],[Наименование]])))","v":true},{"$f":"IF(Таблица2[[#This Row],[Статус]],COUNTIF($F$2:Таблица2[[#This Row],[Статус]],TRUE),\"\")","v":114},{"$f":"IFERROR(INDEX(Таблица2[Наименование],MATCH(ROWS($G$2:Таблица2[[#This Row],[Индекс]]),Таблица2[Индекс],0)),\"\")","v":"Союз 03 белый"}]
[null,null,null,100,"Союз 03 бежевый",{"$f":"NOT(ISERROR(SEARCH(Лист1!$H$7,Таблица2[[#This Row],[Наименование]])))","v":true},{"$f":"IF(Таблица2[[#This Row],[Статус]],COUNTIF($F$2:Таблица2[[#This Row],[Статус]],TRUE),\"\")","v":115},{"$f":"IFERROR(INDEX(Таблица2[Наименование],MATCH(ROWS($G$2:Таблица2[[#This Row],[Индекс]]),Таблица2[Индекс],0)),\"\")","v":"Союз 03 бежевый"}]
[null,null,null,100,"Союз 03 бюриза",{"$f":"NOT(ISERROR(SEARCH(Лист1!$H$7,Таблица2[[#This Row],[Наименование]])))","v":true},{"$f":"IF(Таблица2[[#This Row],[Статус]],COUNTIF($F$2:Таблица2[[#This Row],[Статус]],TRUE),\"\")","v":116},{"$f":"IFERROR(INDEX(Таблица2[Наименование],MATCH(ROWS($G$2:Таблица2[[#This Row],[Индекс]]),Таблица2[Индекс],0)),\"\")","v":"Союз 03 бюриза"}]
[null,null,null,100,"Союз 03 синий",{"$f":"NOT(ISERROR(SEARCH(Лист1!$H$7,Таблица2[[#This Row],[Наименование]])))","v":true},{"$f":"IF(Таблица2[[#This Row],[Статус]],COUNTIF($F$2:Таблица2[[#This Row],[Статус]],TRUE),\"\")","v":117},{"$f":"IFERROR(INDEX(Таблица2[Наименование],MATCH(ROWS($G$2:Таблица2[[#This Row],[Индекс]]),Таблица2[Индекс],0)),\"\")","v":"Союз 03 синий"}]
[null,null,null,100,"Союз 03 светло синий",{"$f":"NOT(ISERROR(SEARCH(Лист1!$H$7,Таблица2[[#This Row],[Наименование]])))","v":true},{"$f":"IF(Таблица2[[#This Row],[Статус]],COUNTIF($F$2:Таблица2[[#This Row],[Статус]],TRUE),\"\")","v":118},{"$f":"IFERROR(INDEX(Таблица2[Наименование],MATCH(ROWS($G$2:Таблица2[[#This Row],[Индекс]]),Таблица2[Индекс],0)),\"\")","v":"Союз 03 светло синий"}]
[null,null,null,100,"Союз 03 серый ",{"$f":"NOT(ISERROR(SEARCH(Лист1!$H$7,Таблица2[[#This Row],[Наименование]])))","v":true},{"$f":"IF(Таблица2[[#This Row],[Статус]],COUNTIF($F$2:Таблица2[[#This Row],[Статус]],TRUE),\"\")","v":119},{"$f":"IFERROR(INDEX(Таблица2[Наименование],MATCH(ROWS($G$2:Таблица2[[#This Row],[Индекс]]),Таблица2[Индекс],0)),\"\")","v":"Союз 03 серый "}]
[null,null,null,100,"Союз 03 голубой",{"$f":"NOT(ISERROR(SEARCH(Лист1!$H$7,Таблица2[[#This Row],[Наименование]])))","v":true},{"$f":"IF(Таблица2[[#This Row],[Статус]],COUNTIF($F$2:Таблица2[[#This Row],[Статус]],TRUE),\"\")","v":120},{"$f":"IFERROR(INDEX(Таблица2[Наименование],MATCH(ROWS($G$2:Таблица2[[#This Row],[Индекс]]),Таблица2[Индекс],0)),\"\")","v":"Союз 03 голубой"}]
[null,null,null,100,"Союз 03 сиреневый",{"$f":"NOT(ISERROR(SEARCH(Лист1!$H$7,Таблица2[[#This Row],[Наименование]])))","v":true},{"$f":"IF(Таблица2[[#This Row],[Статус]],COUNTIF($F$2:Таблица2[[#This Row],[Статус]],TRUE),\"\")","v":121},{"$f":"IFERROR(INDEX(Таблица2[Наименование],MATCH(ROWS($G$2:Таблица2[[#This Row],[Индекс]]),Таблица2[Индекс],0)),\"\")","v":"Союз 03 сиреневый"}]
[null,null,null,100,"Союз 03 темно коричневый",{"$f":"NOT(ISERROR(SEARCH(Лист1!$H$7,Таблица2[[#This Row],[Наименование]])))","v":true},{"$f":"IF(Таблица2[[#This Row],[Статус]],COUNTIF($F$2:Таблица2[[#This Row],[Статус]],TRUE),\"\")","v":122},{"$f":"IFERROR(INDEX(Таблица2[Наименование],MATCH(ROWS($G$2:Таблица2[[#This Row],[Индекс]]),Таблица2[Индекс],0)),\"\")","v":"Союз 03 темно коричневый"}]
[null,null,null,100,"Союз 03 ярко желтый ",{"$f":"NOT(ISERROR(SEARCH(Лист1!$H$7,Таблица2[[#This Row],[Наименование]])))","v":true},{"$f":"IF(Таблица2[[#This Row],[Статус]],COUNTIF($F$2:Таблица2[[#This Row],[Статус]],TRUE),\"\")","v":123},{"$f":"IFERROR(INDEX(Таблица2[Наименование],MATCH(ROWS($G$2:Таблица2[[#This Row],[Индекс]]),Таблица2[Индекс],0)),\"\")","v":"Союз 03 ярко желтый "}]
[null,null,null,100,"Союз 03 терракотовый",{"$f":"NOT(ISERROR(SEARCH(Лист1!$H$7,Таблица2[[#This Row],[Наименование]])))","v":true},{"$f":"IF(Таблица2[[#This Row],[Статус]],COUNTIF($F$2:Таблица2[[#This Row],[Статус]],TRUE),\"\")","v":124},{"$f":"IFERROR(INDEX(Таблица2[Наименование],MATCH(ROWS($G$2:Таблица2[[#This Row],[Индекс]]),Таблица2[Индекс],0)),\"\")","v":"Союз 03 терракотовый"}]
[null,null,null,100,"Союз 03 фисташковый",{"$f":"NOT(ISERROR(SEARCH(Лист1!$H$7,Таблица2[[#This Row],[Наименование]])))","v":true},{"$f":"IF(Таблица2[[#This Row],[Статус]],COUNTIF($F$2:Таблица2[[#This Row],[Статус]],TRUE),\"\")","v":125},{"$f":"IFERROR(INDEX(Таблица2[Наименование],MATCH(ROWS($G$2:Таблица2[[#This Row],[Индекс]]),Таблица2[Индекс],0)),\"\")","v":"Союз 03 фисташковый"}]
[null,null,null,100,"Союз 03 вишня",{"$f":"NOT(ISERROR(SEARCH(Лист1!$H$7,Таблица2[[#This Row],[Наименование]])))","v":true},{"$f":"IF(Таблица2[[#This Row],[Статус]],COUNTIF($F$2:Таблица2[[#This Row],[Статус]],TRUE),\"\")","v":126},{"$f":"IFERROR(INDEX(Таблица2[Наименование],MATCH(ROWS($G$2:Таблица2[[#This Row],[Индекс]]),Таблица2[Индекс],0)),\"\")","v":"Союз 03 вишня"}]
[null,null,null,100,"Союз 03 оранжевый",{"$f":"NOT(ISERROR(SEARCH(Лист1!$H$7,Таблица2[[#This Row],[Наименование]])))","v":true},{"$f":"IF(Таблица2[[#This Row],[Статус]],COUNTIF($F$2:Таблица2[[#This Row],[Статус]],TRUE),\"\")","v":127},{"$f":"IFERROR(INDEX(Таблица2[Наименование],MATCH(ROWS($G$2:Таблица2[[#This Row],[Индекс]]),Таблица2[Индекс],0)),\"\")","v":"Союз 03 оранжевый"}]
[null,null,null,100,"Союз 03 желтый",{"$f":"NOT(ISERROR(SEARCH(Лист1!$H$7,Таблица2[[#This Row],[Наименование]])))","v":true},{"$f":"IF(Таблица2[[#This Row],[Статус]],COUNTIF($F$2:Таблица2[[#This Row],[Статус]],TRUE),\"\")","v":128},{"$f":"IFERROR(INDEX(Таблица2[Наименование],MATCH(ROWS($G$2:Таблица2[[#This Row],[Индекс]]),Таблица2[Индекс],0)),\"\")","v":"Союз 03 желтый"}]
[null,null,null,100,"София 01 (белая)",{"$f":"NOT(ISERROR(SEARCH(Лист1!$H$7,Таблица2[[#This Row],[Наименование]])))","v":true},{"$f":"IF(Таблица2[[#This Row],[Статус]],COUNTIF($F$2:Таблица2[[#This Row],[Статус]],TRUE),\"\")","v":129},{"$f":"IFERROR(INDEX(Таблица2[Наименование],MATCH(ROWS($G$2:Таблица2[[#This Row],[Индекс]]),Таблица2[Индекс],0)),\"\")","v":"София 01 (белая)"}]
[null,null,null,100,"София 03 (розовая)",{"$f":"NOT(ISERROR(SEARCH(Лист1!$H$7,Таблица2[[#This Row],[Наименование]])))","v":true},{"$f":"IF(Таблица2[[#This Row],[Статус]],COUNTIF($F$2:Таблица2[[#This Row],[Статус]],TRUE),\"\")","v":130},{"$f":"IFERROR(INDEX(Таблица2[Наименование],MATCH(ROWS($G$2:Таблица2[[#This Row],[Индекс]]),Таблица2[Индекс],0)),\"\")","v":"София 03 (розовая)"}]
[null,null,null,100,"Сиде белый",{"$f":"NOT(ISERROR(SEARCH(Лист1!$H$7,Таблица2[[#This Row],[Наименование]])))","v":true},{"$f":"IF(Таблица2[[#This Row],[Статус]],COUNTIF($F$2:Таблица2[[#This Row],[Статус]],TRUE),\"\")","v":131},{"$f":"IFERROR(INDEX(Таблица2[Наименование],MATCH(ROWS($G$2:Таблица2[[#This Row],[Индекс]]),Таблица2[Индекс],0)),\"\")","v":"Сиде белый"}]
[null,null,null,100,"Сиде бежевый",{"$f":"NOT(ISERROR(SEARCH(Лист1!$H$7,Таблица2[[#This Row],[Наименование]])))","v":true},{"$f":"IF(Таблица2[[#This Row],[Статус]],COUNTIF($F$2:Таблица2[[#This Row],[Статус]],TRUE),\"\")","v":132},{"$f":"IFERROR(INDEX(Таблица2[Наименование],MATCH(ROWS($G$2:Таблица2[[#This Row],[Индекс]]),Таблица2[Индекс],0)),\"\")","v":"Сиде бежевый"}]
[null,null,null,100,"Сиде терракотовый",{"$f":"NOT(ISERROR(SEARCH(Лист1!$H$7,Таблица2[[#This Row],[Наименование]])))","v":true},{"$f":"IF(Таблица2[[#This Row],[Статус]],COUNTIF($F$2:Таблица2[[#This Row],[Статус]],TRUE),\"\")","v":133},{"$f":"IFERROR(INDEX(Таблица2[Наименование],MATCH(ROWS($G$2:Таблица2[[#This Row],[Индекс]]),Таблица2[Индекс],0)),\"\")","v":"Сиде терракотовый"}]
[null,null,null,100,"Сиде коричневый",{"$f":"NOT(ISERROR(SEARCH(Лист1!$H$7,Таблица2[[#This Row],[Наименование]])))","v":true},{"$f":"IF(Таблица2[[#This Row],[Статус]],COUNTIF($F$2:Таблица2[[#This Row],[Статус]],TRUE),\"\")","v":134},{"$f":"IFERROR(INDEX(Таблица2[Наименование],MATCH(ROWS($G$2:Таблица2[[#This Row],[Индекс]]),Таблица2[Индекс],0)),\"\")","v":"Сиде коричневый"}]
[null,null,null,100,"Сиде фуксия",{"$f":"NOT(ISERROR(SEARCH(Лист1!$H$7,Таблица2[[#This Row],[Наименование]])))","v":true},{"$f":"IF(Таблица2[[#This Row],[Статус]],COUNTIF($F$2:Таблица2[[#This Row],[Статус]],TRUE),\"\")","v":135},{"$f":"IFERROR(INDEX(Таблица2[Наименование],MATCH(ROWS($G$2:Таблица2[[#This Row],[Индекс]]),Таблица2[Индекс],0)),\"\")","v":"Сиде фуксия"}]
[null,null,null,100,"Сиде голубой",{"$f":"NOT(ISERROR(SEARCH(Лист1!$H$7,Таблица2[[#This Row],[Наименование]])))","v":true},{"$f":"IF(Таблица2[[#This Row],[Статус]],COUNTIF($F$2:Таблица2[[#This Row],[Статус]],TRUE),\"\")","v":136},{"$f":"IFERROR(INDEX(Таблица2[Наименование],MATCH(ROWS($G$2:Таблица2[[#This Row],[Индекс]]),Таблица2[Индекс],0)),\"\")","v":"Сиде голубой"}]
[null,null,null,100,"Сиде серебро 80102 (Восток) new",{"$f":"NOT(ISERROR(SEARCH(Лист1!$H$7,Таблица2[[#This Row],[Наименование]])))","v":true},{"$f":"IF(Таблица2[[#This Row],[Статус]],COUNTIF($F$2:Таблица2[[#This Row],[Статус]],TRUE),\"\")","v":137},{"$f":"IFERROR(INDEX(Таблица2[Наименование],MATCH(ROWS($G$2:Таблица2[[#This Row],[Индекс]]),Таблица2[Индекс],0)),\"\")","v":"Сиде серебро 80102 (Восток) new"}]
[null,null,null,100,"Сиде серый",{"$f":"NOT(ISERROR(SEARCH(Лист1!$H$7,Таблица2[[#This Row],[Наименование]])))","v":true},{"$f":"IF(Таблица2[[#This Row],[Статус]],COUNTIF($F$2:Таблица2[[#This Row],[Статус]],TRUE),\"\")","v":138},{"$f":"IFERROR(INDEX(Таблица2[Наименование],MATCH(ROWS($G$2:Таблица2[[#This Row],[Индекс]]),Таблица2[Индекс],0)),\"\")","v":"Сиде серый"}]
[null,null,null,100,"Сиде 8093 (зеленый)",{"$f":"NOT(ISERROR(SEARCH(Лист1!$H$7,Таблица2[[#This Row],[Наименование]])))","v":true},{"$f":"IF(Таблица2[[#This Row],[Статус]],COUNTIF($F$2:Таблица2[[#This Row],[Статус]],TRUE),\"\")","v":139},{"$f":"IFERROR(INDEX(Таблица2[Наименование],MATCH(ROWS($G$2:Таблица2[[#This Row],[Индекс]]),Таблица2[Индекс],0)),\"\")","v":"Сиде 8093 (зеленый)"}]
[null,null,null,100,"Сомюр блэк-аут зеленый",{"$f":"NOT(ISERROR(SEARCH(Лист1!$H$7,Таблица2[[#This Row],[Наименование]])))","v":true},{"$f":"IF(Таблица2[[#This Row],[Статус]],COUNTIF($F$2:Таблица2[[#This Row],[Статус]],TRUE),\"\")","v":140},{"$f":"IFERROR(INDEX(Таблица2[Наименование],MATCH(ROWS($G$2:Таблица2[[#This Row],[Индекс]]),Таблица2[Индекс],0)),\"\")","v":"Сомюр блэк-аут зеленый"}]
[null,null,null,100,"Сказка белая",{"$f":"NOT(ISERROR(SEARCH(Лист1!$H$7,Таблица2[[#This Row],[Наименование]])))","v":true},{"$f":"IF(Таблица2[[#This Row],[Статус]],COUNTIF($F$2:Таблица2[[#This Row],[Статус]],TRUE),\"\")","v":141},{"$f":"IFERROR(INDEX(Таблица2[Наименование],MATCH(ROWS($G$2:Таблица2[[#This Row],[Индекс]]),Таблица2[Индекс],0)),\"\")","v":"Сказка белая"}]
[null,null,null,100,"Сказка светло серая",{"$f":"NOT(ISERROR(SEARCH(Лист1!$H$7,Таблица2[[#This Row],[Наименование]])))","v":true},{"$f":"IF(Таблица2[[#This Row],[Статус]],COUNTIF($F$2:Таблица2[[#This Row],[Статус]],TRUE),\"\")","v":142},{"$f":"IFERROR(INDEX(Таблица2[Наименование],MATCH(ROWS($G$2:Таблица2[[#This Row],[Индекс]]),Таблица2[Индекс],0)),\"\")","v":"Сказка светло серая"}]
[null,null,null,100,"Сказка кремовая",{"$f":"NOT(ISERROR(SEARCH(Лист1!$H$7,Таблица2[[#This Row],[Наименование]])))","v":true},{"$f":"IF(Таблица2[[#This Row],[Статус]],COUNTIF($F$2:Таблица2[[#This Row],[Статус]],TRUE),\"\")","v":143},{"$f":"IFERROR(INDEX(Таблица2[Наименование],MATCH(ROWS($G$2:Таблица2[[#This Row],[Индекс]]),Таблица2[Индекс],0)),\"\")","v":"Сказка кремовая"}]
[null,null,null,100,"Фокус блэк-аут бежевый",{"$f":"NOT(ISERROR(SEARCH(Лист1!$H$7,Таблица2[[#This Row],[Наименование]])))","v":true},{"$f":"IF(Таблица2[[#This Row],[Статус]],COUNTIF($F$2:Таблица2[[#This Row],[Статус]],TRUE),\"\")","v":144},{"$f":"IFERROR(INDEX(Таблица2[Наименование],MATCH(ROWS($G$2:Таблица2[[#This Row],[Индекс]]),Таблица2[Индекс],0)),\"\")","v":"Фокус блэк-аут бежевый"}]
[null,null,null,100,"Фокус блэк-аут серый 8034 (Восток) new",{"$f":"NOT(ISERROR(SEARCH(Лист1!$H$7,Таблица2[[#This Row],[Наименование]])))","v":true},{"$f":"IF(Таблица2[[#This Row],[Статус]],COUNTIF($F$2:Таблица2[[#This Row],[Статус]],TRUE),\"\")","v":145},{"$f":"IFERROR(INDEX(Таблица2[Наименование],MATCH(ROWS($G$2:Таблица2[[#This Row],[Индекс]]),Таблица2[Индекс],0)),\"\")","v":"Фокус блэк-аут серый 8034 (Восток) new"}]
[null,null,null,100,"Фокус блэк-аут белый",{"$f":"NOT(ISERROR(SEARCH(Лист1!$H$7,Таблица2[[#This Row],[Наименование]])))","v":true},{"$f":"IF(Таблица2[[#This Row],[Статус]],COUNTIF($F$2:Таблица2[[#This Row],[Статус]],TRUE),\"\")","v":146},{"$f":"IFERROR(INDEX(Таблица2[Наименование],MATCH(ROWS($G$2:Таблица2[[#This Row],[Индекс]]),Таблица2[Индекс],0)),\"\")","v":"Фокус блэк-аут белый"}]
[null,null,null,100,"Фортуна белая",{"$f":"NOT(ISERROR(SEARCH(Лист1!$H$7,Таблица2[[#This Row],[Наименование]])))","v":true},{"$f":"IF(Таблица2[[#This Row],[Статус]],COUNTIF($F$2:Таблица2[[#This Row],[Статус]],TRUE),\"\")","v":147},{"$f":"IFERROR(INDEX(Таблица2[Наименование],MATCH(ROWS($G$2:Таблица2[[#This Row],[Индекс]]),Таблица2[Индекс],0)),\"\")","v":"Фортуна белая"}]
[null,null,null,100,"Фортуна голубой",{"$f":"NOT(ISERROR(SEARCH(Лист1!$H$7,Таблица2[[#This Row],[Наименование]])))","v":true},{"$f":"IF(Таблица2[[#This Row],[Статус]],COUNTIF($F$2:Таблица2[[#This Row],[Статус]],TRUE),\"\")","v":148},{"$f":"IFERROR(INDEX(Таблица2[Наименование],MATCH(ROWS($G$2:Таблица2[[#This Row],[Индекс]]),Таблица2[Индекс],0)),\"\")","v":"Фортуна голубой"}]
[null,null,null,100,"Ханой белый",{"$f":"NOT(ISERROR(SEARCH(Лист1!$H$7,Таблица2[[#This Row],[Наименование]])))","v":true},{"$f":"IF(Таблица2[[#This Row],[Статус]],COUNTIF($F$2:Таблица2[[#This Row],[Статус]],TRUE),\"\")","v":149},{"$f":"IFERROR(INDEX(Таблица2[Наименование],MATCH(ROWS($G$2:Таблица2[[#This Row],[Индекс]]),Таблица2[Индекс],0)),\"\")","v":"Ханой белый"}]
[null,null,null,100,"Ханой венге",{"$f":"NOT(ISERROR(SEARCH(Лист1!$H$7,Таблица2[[#This Row],[Наименование]])))","v":true},{"$f":"IF(Таблица2[[#This Row],[Статус]],COUNTIF($F$2:Таблица2[[#This Row],[Статус]],TRUE),\"\")","v":150},{"$f":"IFERROR(INDEX(Таблица2[Наименование],MATCH(ROWS($G$2:Таблица2[[#This Row],[Индекс]]),Таблица2[Индекс],0)),\"\")","v":"Ханой венге"}]
[null,null,null,100,"Ханой коричневый",{"$f":"NOT(ISERROR(SEARCH(Лист1!$H$7,Таблица2[[#This Row],[Наименование]])))","v":true},{"$f":"IF(Таблица2[[#This Row],[Статус]],COUNTIF($F$2:Таблица2[[#This Row],[Статус]],TRUE),\"\")","v":151},{"$f":"IFERROR(INDEX(Таблица2[Наименование],MATCH(ROWS($G$2:Таблица2[[#This Row],[Индекс]]),Таблица2[Индекс],0)),\"\")","v":"Ханой коричневый"}]
[null,null,null,100,"Шелк терракотовый",{"$f":"NOT(ISERROR(SEARCH(Лист1!$H$7,Таблица2[[#This Row],[Наименование]])))","v":true},{"$f":"IF(Таблица2[[#This Row],[Статус]],COUNTIF($F$2:Таблица2[[#This Row],[Статус]],TRUE),\"\")","v":152},{"$f":"IFERROR(INDEX(Таблица2[Наименование],MATCH(ROWS($G$2:Таблица2[[#This Row],[Индекс]]),Таблица2[Индекс],0)),\"\")","v":"Шелк терракотовый"}]
[null,null,null,100,"Шелк зеленый",{"$f":"NOT(ISERROR(SEARCH(Лист1!$H$7,Таблица2[[#This Row],[Наименование]])))","v":true},{"$f":"IF(Таблица2[[#This Row],[Статус]],COUNTIF($F$2:Таблица2[[#This Row],[Статус]],TRUE),\"\")","v":153},{"$f":"IFERROR(INDEX(Таблица2[Наименование],MATCH(ROWS($G$2:Таблица2[[#This Row],[Индекс]]),Таблица2[Индекс],0)),\"\")","v":"Шелк зеленый"}]
[null,null,null,100,"Шелк 88083 (желтый)",{"$f":"NOT(ISERROR(SEARCH(Лист1!$H$7,Таблица2[[#This Row],[Наименование]])))","v":true},{"$f":"IF(Таблица2[[#This Row],[Статус]],COUNTIF($F$2:Таблица2[[#This Row],[Статус]],TRUE),\"\")","v":154},{"$f":"IFERROR(INDEX(Таблица2[Наименование],MATCH(ROWS($G$2:Таблица2[[#This Row],[Индекс]]),Таблица2[Индекс],0)),\"\")","v":"Шелк 88083 (желтый)"}]
[null,null,null,100,"Шелк 88081 (белый)",{"$f":"NOT(ISERROR(SEARCH(Лист1!$H$7,Таблица2[[#This Row],[Наименование]])))","v":true},{"$f":"IF(Таблица2[[#This Row],[Статус]],COUNTIF($F$2:Таблица2[[#This Row],[Статус]],TRUE),\"\")","v":155},{"$f":"IFERROR(INDEX(Таблица2[Наименование],MATCH(ROWS($G$2:Таблица2[[#This Row],[Индекс]]),Таблица2[Индекс],0)),\"\")","v":"Шелк 88081 (белый)"}]
[null,null,null,100,"Шелк 88187 (светло зеленый)",{"$f":"NOT(ISERROR(SEARCH(Лист1!$H$7,Таблица2[[#This Row],[Наименование]])))","v":true},{"$f":"IF(Таблица2[[#This Row],[Статус]],COUNTIF($F$2:Таблица2[[#This Row],[Статус]],TRUE),\"\")","v":156},{"$f":"IFERROR(INDEX(Таблица2[Наименование],MATCH(ROWS($G$2:Таблица2[[#This Row],[Индекс]]),Таблица2[Индекс],0)),\"\")","v":"Шелк 88187 (светло зеленый)"}]
[null,null,null,100,"Шелк 88226 (фиолетовый)",{"$f":"NOT(ISERROR(SEARCH(Лист1!$H$7,Таблица2[[#This Row],[Наименование]])))","v":true},{"$f":"IF(Таблица2[[#This Row],[Статус]],COUNTIF($F$2:Таблица2[[#This Row],[Статус]],TRUE),\"\")","v":157},{"$f":"IFERROR(INDEX(Таблица2[Наименование],MATCH(ROWS($G$2:Таблица2[[#This Row],[Индекс]]),Таблица2[Индекс],0)),\"\")","v":"Шелк 88226 (фиолетовый)"}]
[null,null,null,100,"Шелк 88046 (синий)",{"$f":"NOT(ISERROR(SEARCH(Лист1!$H$7,Таблица2[[#This Row],[Наименование]])))","v":true},{"$f":"IF(Таблица2[[#This Row],[Статус]],COUNTIF($F$2:Таблица2[[#This Row],[Статус]],TRUE),\"\")","v":158},{"$f":"IFERROR(INDEX(Таблица2[Наименование],MATCH(ROWS($G$2:Таблица2[[#This Row],[Индекс]]),Таблица2[Индекс],0)),\"\")","v":"Шелк 88046 (синий)"}]
[null,null,null,100,"Шелк 88192 (темно зеленый)",{"$f":"NOT(ISERROR(SEARCH(Лист1!$H$7,Таблица2[[#This Row],[Наименование]])))","v":true},{"$f":"IF(Таблица2[[#This Row],[Статус]],COUNTIF($F$2:Таблица2[[#This Row],[Статус]],TRUE),\"\")","v":159},{"$f":"IFERROR(INDEX(Таблица2[Наименование],MATCH(ROWS($G$2:Таблица2[[#This Row],[Индекс]]),Таблица2[Индекс],0)),\"\")","v":"Шелк 88192 (темно зеленый)"}]
[null,null,null,100,"Шелк 88046 (голубой) new",{"$f":"NOT(ISERROR(SEARCH(Лист1!$H$7,Таблица2[[#This Row],[Наименование]])))","v":true},{"$f":"IF(Таблица2[[#This Row],[Статус]],COUNTIF($F$2:Таблица2[[#This Row],[Статус]],TRUE),\"\")","v":160},{"$f":"IFERROR(INDEX(Таблица2[Наименование],MATCH(ROWS($G$2:Таблица2[[#This Row],[Индекс]]),Таблица2[Индекс],0)),\"\")","v":"Шелк 88046 (голубой) new"}]
[null,null,null,100,"Шелк 88192 (лилово-розовый) new",{"$f":"NOT(ISERROR(SEARCH(Лист1!$H$7,Таблица2[[#This Row],[Наименование]])))","v":true},{"$f":"IF(Таблица2[[#This Row],[Статус]],COUNTIF($F$2:Таблица2[[#This Row],[Статус]],TRUE),\"\")","v":161},{"$f":"IFERROR(INDEX(Таблица2[Наименование],MATCH(ROWS($G$2:Таблица2[[#This Row],[Индекс]]),Таблица2[Индекс],0)),\"\")","v":"Шелк 88192 (лилово-розовый) new"}]
[null,null,null,100,"Шелк 88084 (песочный) new",{"$f":"NOT(ISERROR(SEARCH(Лист1!$H$7,Таблица2[[#This Row],[Наименование]])))","v":true},{"$f":"IF(Таблица2[[#This Row],[Статус]],COUNTIF($F$2:Таблица2[[#This Row],[Статус]],TRUE),\"\")","v":162},{"$f":"IFERROR(INDEX(Таблица2[Наименование],MATCH(ROWS($G$2:Таблица2[[#This Row],[Индекс]]),Таблица2[Индекс],0)),\"\")","v":"Шелк 88084 (песочный) new"}]
[null,null,null,100,"Шёлк серый (Amigo)",{"$f":"NOT(ISERROR(SEARCH(Лист1!$H$7,Таблица2[[#This Row],[Наименование]])))","v":true},{"$f":"IF(Таблица2[[#This Row],[Статус]],COUNTIF($F$2:Таблица2[[#This Row],[Статус]],TRUE),\"\")","v":163},{"$f":"IFERROR(INDEX(Таблица2[Наименование],MATCH(ROWS($G$2:Таблица2[[#This Row],[Индекс]]),Таблица2[Индекс],0)),\"\")","v":"Шёлк серый (Amigo)"}]

{"sheet":"Лист3","index":2,"n_rows":5,"n_cols":2,"rows_kept":5,"cut":false,"hidden":false,"merged":[]}
["Вертикальные жалюзи","ц.р."]
["Горизонтальные жалюзи","к.р."]
["Рулонные шторы","лев."]
["Кассетная система рулонная","пр."]
["Кассетная система Isotra"]